Workbook

Sheet Compressive Strength
A1: TxDOT Manuals > | E1: Tex-120-E
B2: TEXAS DEPARTMENT OF TRANSPORTATION | S2: 524
S3: 3
S4: tx120.xlsm::45505.66456
B5: SOIL-CEMENT TESTING
B6: Tex-120-E : PART I
Q7: ="File Version: " & TEXT(MID(sn,SEARCH("::",sn,1)+2,20),"mm/dd/yy hh:mm:ss") -> File Version: 08/01/24 15:56:58
B8: SAMPLE ID: | J8: SAMPLED DATE:
B9: TEST NUMBER: | J9: LETTING DATE:
B10: SAMPLE STATUS: | J10: CONTROLLING CSJ:
B11: COUNTY: | J11: SPEC YEAR:
B12: SAMPLED BY: | J12: SPEC ITEM:
B13: SAMPLE LOCATION: | J13: SPECIAL PROVISION:
B14: MATERIAL CODE: | J14: GRADE:
B15: MATERIAL NAME:
B16: PRODUCER:
B17: AREA ENGINEER: | J17: PROJECT MANAGER:
B19: COURSE\LIFT: | H19: STATION: | L19: DIST. FROM CL:
B21: Performed By Tex-120-E: | H21: <-- Select method of data collection.
B23: Soil-Cement Test Data Sheet
G24: 1 | J24: 2 | M24: 3 | P24: 4
B25: Percent Cement, (%)
B26: Specimen Number: | G26: 1-1 | H26: 1-2 | I26: 1-3 | J26: 2-1 | K26: 2-2 | L26: 2-3 | M26: 3-1 | N26: 3-2 | O26: 3-3 | P26: 4-1 | Q26: 4-2 | R26: 4-3
B27: Initial Height of Specimen, in.:
B28: Height of Stone 1, in.
B29: Height of Stone 2, in.
B30: New Height of Specimen, in.: | G30: =IF(AutoMan="automated",IF('Set 1(a)'!$D$6="","",'Set 1(a)'!$D$6),IF(COUNTBLANK(G27:G29)=3,"",G27-G28-G29)) ->  | H30: =IF(AutoMan="automated",IF('Set 1(b)'!$D$6="","",'Set 1(b)'!$D$6),IF(COUNTBLANK(H27:H29)=3,"",H27-H28-H29)) ->  | I30: =IF(AutoMan="automated",IF('Set 1(c)'!$D$6="","",'Set 1(c)'!$D$6),IF(COUNTBLANK(I27:I29)=3,"",I27-I28-I29)) ->  | J30: =IF(AutoMan="automated",IF('Set 2(a)'!$D$6="","",'Set 2(a)'!$D$6),IF(COUNTBLANK(J27:J29)=3,"",J27-J28-J29)) ->  | K30: =IF(AutoMan="automated",IF('Set 2(b)'!$D$6="","",'Set 2(b)'!$D$6),IF(COUNTBLANK(K27:K29)=3,"",K27-K28-K29)) ->  | L30: =IF(AutoMan="automated",IF('Set 2(c)'!$D$6="","",'Set 2(c)'!$D$6),IF(COUNTBLANK(L27:L29)=3,"",L27-L28-L29)) ->  | M30: =IF(AutoMan="automated",IF('Set 3(a)'!$D$6="","",'Set 3(a)'!$D$6),IF(COUNTBLANK(M27:M29)=3,"",M27-M28-M29)) ->  | N30: =IF(AutoMan="automated",IF('Set 3(b)'!$D$6="","",'Set 3(b)'!$D$6),IF(COUNTBLANK(N27:N29)=3,"",N27-N28-N29)) ->  | O30: =IF(AutoMan="automated",IF('Set 3(c)'!$D$6="","",'Set 3(c)'!$D$6),IF(COUNTBLANK(O27:O29)=3,"",O27-O28-O29)) ->  | P30: =IF(AutoMan="automated",IF('Set 4(a)'!$D$6="","",'Set 4(a)'!$D$6),IF(COUNTBLANK(P27:P29)=3,"",P27-P28-P29)) ->  | Q30: =IF(AutoMan="automated",IF('Set 4(b)'!$D$6="","",'Set 4(b)'!$D$6),IF(COUNTBLANK(Q27:Q29)=3,"",Q27-Q28-Q29)) ->  | R30: =IF(AutoMan="automated",IF('Set 4(c)'!$D$6="","",'Set 4(c)'!$D$6),IF(COUNTBLANK(R27:R29)=3,"",R27-R28-R29)) -> 
B31: Average Diameter, in.: | G31: =IF(G27="","",IF(AutoMan="automated",'Set 1(a)'!$B$6,+G32/PI())) ->  | H31: =IF(H27="","",IF(AutoMan="automated",'Set 1(b)'!$B$6,+H32/PI())) ->  | I31: =IF(I27="","",IF(AutoMan="automated",'Set 1(c)'!$B$6,+I32/PI())) ->  | J31: =IF(J27="","",IF(AutoMan="automated",'Set 2(a)'!$B$6,+J32/PI())) ->  | K31: =IF(K27="","",IF(AutoMan="automated",'Set 2(b)'!$B$6,+K32/PI())) ->  | L31: =IF(L27="","",IF(AutoMan="automated",'Set 2(c)'!$B$6,+L32/PI())) ->  | M31: =IF(M27="","",IF(AutoMan="automated",'Set 3(a)'!$B$6,+M32/PI())) ->  | N31: =IF(N27="","",IF(AutoMan="automated",'Set 3(b)'!$B$6,+N32/PI())) ->  | O31: =IF(O27="","",IF(AutoMan="automated",'Set 3(c)'!$B$6,+O32/PI())) ->  | P31: =IF(P27="","",IF(AutoMan="automated",'Set 4(a)'!$B$6,+P32/PI())) ->  | Q31: =IF(Q27="","",IF(AutoMan="automated",'Set 4(b)'!$B$6,+Q32/PI())) ->  | R31: =IF(R27="","",IF(AutoMan="automated",'Set 4(c)'!$B$6,+R32/PI())) -> 
B32: Circumference, in.:
B33: Area, in.^2: | G33: =IF(G27="","",+G32*(G31/4)) -> 
B34: Avg. Cross Sectional Area, in^2: | G34: =IF(G27="","",+G33/G49) -> 
B35: Lateral Pressure, psi.:
B36: Calibration Factor: | G36: =IF('Set 1(a)'!$B$16="","",'Set 1(a)'!$B$16) ->  | H36: =IF('Set 1(b)'!$B$16="","",'Set 1(b)'!$B$16) ->  | I36: =IF('Set 1(c)'!$B$16="","",'Set 1(c)'!$B$16) ->  | J36: =IF('Set 2(a)'!$B$16="","",'Set 2(a)'!$B$16) ->  | K36: =IF('Set 2(b)'!$B$16="","",'Set 2(b)'!$B$16) ->  | L36: =IF('Set 2(c)'!$B$16="","",'Set 2(c)'!$B$16) ->  | M36: =IF('Set 3(a)'!$B$16="","",'Set 3(a)'!$B$16) ->  | N36: =IF('Set 3(b)'!$B$16="","",'Set 3(b)'!$B$16) ->  | O36: =IF('Set 3(c)'!$B$16="","",'Set 3(c)'!$B$16) ->  | P36: =IF('Set 4(a)'!$B$16="","",'Set 4(a)'!$B$16) ->  | Q36: =IF('Set 4(b)'!$B$16="","",'Set 4(b)'!$B$16) ->  | R36: =IF('Set 4(c)'!$B$16="","",'Set 4(c)'!$B$16) -> 
B37: Excitation: | G37: =IF('Set 1(a)'!$B$17="","",'Set 1(a)'!$B$17) ->  | H37: =IF('Set 1(b)'!$B$17="","",'Set 1(b)'!$B$17) ->  | I37: =IF('Set 1(c)'!$B$17="","",'Set 1(c)'!$B$17) ->  | J37: =IF('Set 2(a)'!$B$17="","",'Set 2(a)'!$B$17) ->  | K37: =IF('Set 2(b)'!$B$17="","",'Set 2(b)'!$B$17) ->  | L37: =IF('Set 2(c)'!$B$17="","",'Set 2(c)'!$B$17) ->  | M37: =IF('Set 3(a)'!$B$17="","",'Set 3(a)'!$B$17) ->  | N37: =IF('Set 3(b)'!$B$17="","",'Set 3(b)'!$B$17) ->  | O37: =IF('Set 3(c)'!$B$17="","",'Set 3(c)'!$B$17) ->  | P37: =IF('Set 4(a)'!$B$17="","",'Set 4(a)'!$B$17) ->  | Q37: =IF('Set 4(b)'!$B$17="","",'Set 4(b)'!$B$17) ->  | R37: =IF('Set 4(c)'!$B$17="","",'Set 4(c)'!$B$17) -> 
B38: Zero: | G38: =IF('Set 1(a)'!$B$18="","",'Set 1(a)'!$B$18) ->  | H38: =IF('Set 1(b)'!$B$18="","",'Set 1(b)'!$B$18) ->  | I38: =IF('Set 1(c)'!$B$18="","",'Set 1(c)'!$B$18) ->  | J38: =IF('Set 2(a)'!$B$18="","",'Set 2(a)'!$B$18) ->  | K38: =IF('Set 2(b)'!$B$18="","",'Set 2(b)'!$B$18) ->  | L38: =IF('Set 2(c)'!$B$18="","",'Set 2(c)'!$B$18) ->  | M38: =IF('Set 3(a)'!$B$18="","",'Set 3(a)'!$B$18) ->  | N38: =IF('Set 3(b)'!$B$18="","",'Set 3(b)'!$B$18) ->  | O38: =IF('Set 3(c)'!$B$18="","",'Set 3(c)'!$B$18) ->  | P38: =IF('Set 4(a)'!$B$18="","",'Set 4(a)'!$B$18) ->  | Q38: =IF('Set 4(b)'!$B$18="","",'Set 4(b)'!$B$18) ->  | R38: =IF('Set 4(c)'!$B$18="","",'Set 4(c)'!$B$18) -> 
B39: Ring Factor, lbs./div
B40: Dead Load, lbs.:
B41: Piston Correction, lbs.: | G41: =IF('Set 1(a)'!$B$7="","",'Set 1(a)'!$B$7) ->  | H41: =IF('Set 1(b)'!$B$7="","",'Set 1(b)'!$B$7) ->  | I41: =IF('Set 1(c)'!$B$7="","",'Set 1(c)'!$B$7) ->  | J41: =IF('Set 2(a)'!$B$7="","",'Set 2(a)'!$B$7) ->  | K41: =IF('Set 2(b)'!$B$7="","",'Set 2(b)'!$B$7) ->  | L41: =IF('Set 2(c)'!$B$7="","",'Set 2(c)'!$B$7) ->  | M41: =IF('Set 3(a)'!$B$7="","",'Set 3(a)'!$B$7) ->  | N41: =IF('Set 3(b)'!$B$7="","",'Set 3(b)'!$B$7) ->  | O41: =IF('Set 3(c)'!$B$7="","",'Set 3(c)'!$B$7) ->  | P41: =IF('Set 4(a)'!$B$7="","",'Set 4(a)'!$B$7) ->  | Q41: =IF('Set 4(b)'!$B$7="","",'Set 4(b)'!$B$7) ->  | R41: =IF('Set 4(c)'!$B$7="","",'Set 4(c)'!$B$7) -> 
B42: Max. Load Reading, div.: | G42: =IF('Set 1(a)'!$B$25="","",'Set 1(a)'!$B$25) ->  | H42: =IF('Set 1(b)'!$B$25="","",'Set 1(b)'!$B$25) ->  | I42: =IF('Set 1(c)'!$B$25="","",'Set 1(c)'!$B$25) ->  | J42: =IF('Set 2(a)'!$B$25="","",'Set 2(a)'!$B$25) ->  | K42: =IF('Set 2(b)'!$B$25="","",'Set 2(b)'!$B$25) ->  | L42: =IF('Set 2(c)'!$B$25="","",'Set 2(c)'!$B$25) ->  | M42: =IF('Set 3(a)'!$B$25="","",'Set 3(a)'!$B$25) ->  | N42: =IF('Set 3(b)'!$B$25="","",'Set 3(b)'!$B$25) ->  | O42: =IF('Set 3(c)'!$B$25="","",'Set 3(c)'!$B$25) ->  | P42: =IF('Set 4(a)'!$B$25="","",'Set 4(a)'!$B$25) ->  | Q42: =IF('Set 4(b)'!$B$25="","",'Set 4(b)'!$B$25) ->  | R42: =IF('Set 4(c)'!$B$25="","",'Set 4(c)'!$B$25) -> 
B43: Max Load, lbs.: | G43: =IF(G42="","",((G$42-G$38)*G$36)/G$37) -> 
B44: Deformation at Max Load, in.: | G44: =IF(G42="","",('Set 1(a)'!$D$26-'Set 1(a)'!$D$24)/'Set 1(a)'!$D$16) ->  | H44: =IF(H42="","",('Set 1(b)'!$D$26-'Set 1(b)'!$D$24)/'Set 1(b)'!$D$16) ->  | I44: =IF(I42="","",('Set 1(c)'!$D$26-'Set 1(c)'!$D$24)/'Set 1(c)'!$D$16) ->  | J44: =IF(J42="","",('Set 2(a)'!$D$26-'Set 2(a)'!$D$24)/'Set 2(a)'!$D$16) ->  | K44: =IF(K42="","",('Set 2(b)'!$D$26-'Set 2(b)'!$D$24)/'Set 2(b)'!$D$16) ->  | L44: =IF(L42="","",('Set 2(c)'!$D$26-'Set 2(c)'!$D$24)/'Set 2(c)'!$D$16) ->  | M44: =IF(M42="","",('Set 3(a)'!$D$26-'Set 3(a)'!$D$24)/'Set 3(a)'!$D$16) ->  | N44: =IF(N42="","",('Set 3(b)'!$D$26-'Set 3(b)'!$D$24)/'Set 3(b)'!$D$16) ->  | O44: =IF(O42="","",('Set 3(c)'!$D$26-'Set 3(c)'!$D$24)/'Set 3(c)'!$D$16) ->  | P44: =IF(P42="","",('Set 4(a)'!$D$26-'Set 4(a)'!$D$24)/'Set 4(a)'!$D$16) ->  | Q44: =IF(Q42="","",('Set 4(b)'!$D$26-'Set 4(b)'!$D$24)/'Set 4(b)'!$D$16) ->  | R44: =IF(R42="","",('Set 4(c)'!$D$26-'Set 4(c)'!$D$24)/'Set 4(c)'!$D$16) -> 
B45: Max. Load Reading, div.
B46: Deformation at Max Load, in.
B47: Uncorr'd Stress, psi.: | G47: =IF(G27="","",IF(AutoMan="automated",(G43+G40)/IF(Version="1",G34,G33),(((G45*G39)+G40)/G33))) -> 
B48: % Strain , in./in.: | G48: =IF(G27="","",IF(AutoMan="automated",(G44/G30)*100,(G46/G30)*100)) -> 
B49: I-Strain, in./in.: | G49: =IF(G27="","",IF(AutoMan="automated",1-(G44/G30),1-(G46/G30))) -> 
B50: Corrected Stress, psi.: | G50: =IF(G27=0,"",IF(AutoMan="automated",(G49*G47),((G39*G45)+G40)/G34)) ->  | H50: =IF(H27=0,"",IF(AutoMan="automated",(H49*H47),((H39*H45)+H40)/H34)) ->  | I50: =IF(I27=0,"",IF(AutoMan="automated",(I49*I47),((I39*I45)+I40)/I34)) ->  | J50: =IF(J27="","",IF(AutoMan="automated",(J49*J47),((J39*J45)+J40)/J34)) -> 
B52: Avg. Corrected Stress, psi: | I52: =IF(ISERROR(AVERAGE(G50:I50)),"",AVERAGE(G50:I50)) ->  | L52: =IF(ISERROR(AVERAGE(J50:L50)),"",AVERAGE(J50:L50)) ->  | O52: =IF(ISERROR(AVERAGE(M50:O50)),"",AVERAGE(M50:O50)) ->  | R52: =IF(ISERROR(AVERAGE(P50:R50)),"",AVERAGE(P50:R50)) -> 
G54: 1 | H54: 2 | I54: 3 | J54: 4
B55: Percent Cement, (%) | G55: =IF(CSPercentCement1="","",ROUND(CSPercentCement1*2,0)/2) ->  | H55: =IF(CSPercentCement2="","",ROUND(CSPercentCement2*2,0)/2) ->  | I55: =IF(CSPercentCement3="","",ROUND(CSPercentCement3*2,0)/2) ->  | J55: =IF(CSPercentCement4="","",ROUND(CSPercentCement4*2,0)/2) -> 
B56: Avg. Corrected Stress, psi: | G56: =IF(AVGCS1=0,0,AVGCS1) ->  | H56: =IF(AVGCS2=0,0,AVGCS2) ->  | I56: =IF(AVGCS3=0,0,AVGCS3) ->  | J56: =IF(AVGCS4=0,0,AVGCS4) -> 
B58: Target Stress, psi:
B60: Target Percent Cement, %: | G60: =IF(TargetStress="","",(G58-INTERCEPT(G56:J56,G55:J55))/LINEST(G56:J56,G55:J55)) -> 
B63: Remarks: | D63: =NOW() -> 2024-08-01T15:56:58.440
B68: Sample Method: | D68: Sampled By: | J68: Sampled Date:
B69: TX100
B71: TX400
B72: Test Method: | D72: Tested By: | J72: Tested Date:
B73: TX120
B74: Test Stamp Code: | H74: Omit Test: | J74: Completed Date: | L74: Reviewed By:
B76: Locked By: | D76: TxDOT: | F76: District: | H76: Area:
B78: Authorized By: | H78: Authorized Date:
K79: =IF(AuthorizedDate<38257,"1","2") -> 1

Sheet Tex-113,4-E
A1: TxDOT Manuals > | D1: Tex-113-E
B2: TEXAS DEPARTMENT OF TRANSPORTATION | K2: 49
B3: =IF(Location="","",Location) ->  | K3: 1
B4: Soil-Cement Testing: Tex-120-E, Part II | J4: Tx113,4.xls::37445.433542 | K4: Tx113.xls::37092.636285
B5: Moisture-Density Relations of Base Material & Sand or Subgrade & Embankment Soils | J5: 44
B6: TEX-113-E or Tex-114-E
I7: ="Tx113,4 File Version: " & TEXT(MID(_sn113,SEARCH("::",_sn113,1)+2,20),"mm/dd/yy hh:mm:ss") -> Tx113,4 File Version: 07/08/02 10:24:18
C8: SAMPLE ID: | D8: =IF(SampleId="","",SampleId) ->  | G8: SAMPLED DATE: | H8: =IF(SampledDate="","",SampledDate) -> 
C9: TEST NUMBER: | D9: =IF(TestNumber="","",TestNumber) ->  | G9: LETTING DATE: | H9: =IF(LettingDate="","",LettingDate) -> 
C10: SAMPLE STATUS: | D10: =IF(Status="","",Status) ->  | G10: CONTROLLING CSJ: | H10: =IF(CCSJ="","",CCSJ) -> 
C11: COUNTY: | D11: =IF(County="","",County) ->  | G11: SPEC YEAR: | H11: =IF(SpecYear="","",SpecYear) -> 
C12: SAMPLED BY: | D12: =IF(SampledBy="","",SampledBy) ->  | G12: SPEC ITEM: | H12: =IF(SpecItem="","",SpecItem) -> 
C13: SAMPLE LOCATION: | D13: =IF(SampleLocation="","",SampleLocation) ->  | G13: SPECIAL PROVISION: | H13: =IF(SpecialProvision="","",SpecialProvision) -> 
C14: MATERIAL CODE: | D14: =IF(Material="","",Material) ->  | G14: GRADE: | H14: =IF(Grade="","",Grade) -> 
C15: MATERIAL NAME: | D15: =IF(matl_nm="","",matl_nm) -> 
C16: PRODUCER: | D16: =IF(Producer="","",Producer) ->  | F16: =IF(SampleId="","",SampleId) ->  | H16: =IF(SampleId="","",SampleId) -> 
C17: AREA ENGINEER: | D17: =IF(AreaEngineer="","",AreaEngineer) ->  | G17: PROJECT MANAGER: | H17: =IF(ProjectManager="","",ProjectManager) -> 
C19: COURSE\LIFT: | D19: =IF(CourseLift="","",CourseLift) ->  | E19: STATION: | F19: =IF(Station="","",Station) ->  | H19: DIST. FROM CL: | I19: =IF(DistFromCL="","",DistFromCL) -> 
B20: Moisture-Density Work Sheet
B21: Percent Cement, (%):
B22: Oven Dry Weight, (g):
B23: Weight of Pycnometer & Water, (g):
B24: Weight of Aggr., Pycn.& Water, (g):
B25: Specific Gravity (Apparent): | E25: =IF(ISERROR(E22/(E22+E23-E24)),"",E22/(E22+E23-E24)) -> 
B27: Hygroscopic Moisture, (%):
E29: 1 | F29: 2 | G29: 3 | H29: 4
B30: Percent Water Content, (%):
B31: Percent Cement, (%): | E31: =IF(OR(E30="",PerCem113=""),"",ROUND(PerCem113*2,0)/2) ->  | F31: =IF(OR(F30="",PerCem113=""),"",ROUND(PerCem113*2,0)/2) ->  | G31: =IF(OR(G30="",PerCem113=""),"",ROUND(PerCem113*2,0)/2) ->  | H31: =IF(OR(H30="",PerCem113=""),"",ROUND(PerCem113*2,0)/2) -> 
B32: Mass Material, (lb):
B33: Mass Water Added, (lb): | E33: =IF(OR(E30="",ISERROR((E30/100)*(E32+E34))),"",(E30/100)*(E32+E34)) ->  | F33: =IF(OR(F30="",ISERROR((F30/100)*(F32+F34))),"",(F30/100)*(F32+F34)) ->  | G33: =IF(OR(G30="",ISERROR((G30/100)*(G32+G34))),"",(G30/100)*(G32+G34)) ->  | H33: =IF(OR(H30="",ISERROR((H30/100)*(H32+H34))),"",(H30/100)*(H32+H34)) -> 
B34: Mass Cement Added, (lb): | E34: =IF(OR(E30="",ISERROR((N(E31)/100)*(E32-(E32*$E$27)))),"",(N(E31)/100)*(E32-(E32*$E$27))) ->  | F34: =IF(OR(F30="",ISERROR((N(F31)/100)*(F32-(F32*$E$27)))),"",(N(F31)/100)*(F32-(F32*$E$27))) ->  | G34: =IF(OR(G30="",ISERROR((N(G31)/100)*(G32-(G32*$E$27)))),"",(N(G31)/100)*(G32-(G32*$E$27))) ->  | H34: =IF(OR(H30="",ISERROR((N(H31)/100)*(H32-(H32*$E$27)))),"",(N(H31)/100)*(H32-(H32*$E$27))) -> 
B35: Wet Mass Specimen & Mold, (lb):
B36: Tare Mass Mold, (lb):
B37: Wet Mass Specimen, (lb): | E37: =IF(COUNTBLANK(E35:E36)=2,"",E35-E36) ->  | F37: =IF(COUNTBLANK(F35:F36)=2,"",F35-F36) ->  | G37: =IF(COUNTBLANK(G35:G36)=2,"",G35-G36) ->  | H37: =IF(COUNTBLANK(H35:H36)=2,"",H35-H36) -> 
B38: Height of Specimen, (in.):
B39: Volume per Linear mm., (in.):
B40: Volume of Specimen, (ft^3): | E40: =IF(COUNTBLANK(E38:E39)=2,"",E39*E38) ->  | F40: =IF(COUNTBLANK(F38:F39)=2,"",F39*F38) ->  | G40: =IF(COUNTBLANK(G38:G39)=2,"",G39*G38) ->  | H40: =IF(COUNTBLANK(H38:H39)=2,"",H39*H38) -> 
B41: Wet Density of Specimen, (lb): | E41: =IF(ISERROR(E37/E40),"",E37/E40) ->  | F41: =IF(ISERROR(F37/F40),"",F37/F40) ->  | G41: =IF(ISERROR(G37/G40),"",G37/G40) ->  | H41: =IF(ISERROR(H37/H40),"",H37/H40) -> 
B42: Wet Mass of Pan & Specimen, (lb):
B43: Dry Mass Pan & Specimen, (lb):
B44: Tare Mass Pan, (lb):
B45: Dry Mass Material , (lb): | E45: =IF(COUNTBLANK(E43:E44)=2,"",E43-E44) ->  | F45: =IF(COUNTBLANK(F43:F44)=2,"",F43-F44) ->  | G45: =IF(COUNTBLANK(G43:G44)=2,"",G43-G44) ->  | H45: =IF(COUNTBLANK(H43:H44)=2,"",H43-H44) -> 
B46: Mass Water, (lb): | E46: =IF(COUNTBLANK(E42:E43)=2,"",E42-E43) ->  | F46: =IF(COUNTBLANK(F42:F43)=2,"",F42-F43) ->  | G46: =IF(COUNTBLANK(G42:G43)=2,"",G42-G43) ->  | H46: =IF(COUNTBLANK(H42:H43)=2,"",H42-H43) -> 
B47: Percent Water on Total , (%): | E47: =IF(ISERROR((E46/E45)*100),"",(E46/E45)*100) ->  | F47: =IF(ISERROR((F46/F45)*100),"",(F46/F45)*100) ->  | G47: =IF(ISERROR((G46/G45)*100),"",(G46/G45)*100) ->  | H47: =IF(ISERROR((H46/H45)*100),"",(H46/H45)*100) -> 
B48: Dry Density, (pcf): | E48: =IF(ISERROR(E41/(1+(E47/100))),"",E41/(1+(E47/100))) ->  | F48: =IF(ISERROR(F41/(1+(F47/100))),"",F41/(1+(F47/100))) ->  | G48: =IF(ISERROR(G41/(1+(G47/100))),"",G41/(1+(G47/100))) ->  | H48: =IF(ISERROR(H41/(1+(H47/100))),"",H41/(1+(H47/100))) -> 
B49: Estimated Dry Density, (pcf): | E49: =IF(ISERROR(E41/(1+(E30/100))),"",E41/(1+(E30/100))) ->  | F49: =IF(ISERROR(F41/(1+(F30/100))),"",F41/(1+(F30/100))) ->  | G49: =IF(ISERROR(G41/(1+(G30/100))),"",G41/(1+(G30/100))) ->  | H49: =IF(ISERROR(H41/(1+(H30/100))),"",H41/(1+(H30/100))) -> 
B50: Max Density, (pcf): | E50: =IF(ISERROR(IF(AND(E23>0,E24>0),Reference!B22,IF(H46>0,Reference!B22,"Need SG"))),"",IF(AND(E23>0,E24>0),Reference!B22,IF(H46>0,Reference!B22,"Need SG"))) -> 
B51: Max Density, (kg/m3): | E51: =IF(ISERROR(E50*(0.4536/0.02832)),"",E50*(0.4536/0.02832)) -> 
B52: Optimum Moisture, (%): | E52: =IF(ISERROR(Reference!B23),"",Reference!B23) -> 
B54: Remarks: | C54: =NOW() -> 2024-08-01T15:56:58.450
B57: Test Method: | C57: Tested By: | F57: Date:
B58: TX113
B60: Tx114

Sheet Optimum Moisture
A1: TxDOT Manuals > | E1: Tex-120-E
B2: TEXAS DEPARTMENT OF TRANSPORTATION | S2: 242
S3: 1
S4: Tx120.xls::37103.638102
B5: OPTIMUM MOISTURE TESTS
B6: Tex-120-E : PART II
B8: SAMPLE ID: | F8: =IF(SampleId="","",SampleId) ->  | J8: SAMPLED DATE: | N8: =IF(SampledDate="","",SampledDate) -> 
B9: TEST NUMBER: | F9: =IF(TestNumber="","",TestNumber) ->  | J9: LETTING DATE: | N9: =IF(LettingDate="","",LettingDate) -> 
B10: SAMPLE STATUS: | F10: =IF(Status="","",Status) ->  | J10: CONTROLLING CSJ: | N10: =IF(CCSJ="","",CCSJ ) -> 
B11: COUNTY: | F11: =IF(County="","",County) ->  | J11: SPEC YEAR: | N11: =IF(SpecYear="","",SpecYear) -> 
B12: SAMPLED BY: | F12: =IF(SampledBy="","",SampledBy) ->  | J12: SPEC ITEM: | N12: =IF(SpecItem="","",SpecItem) -> 
B13: SAMPLE LOCATION: | F13: =IF(SampleLocation="","",SampleLocation) ->  | J13: SPECIAL PROVISION: | N13: =IF(SpecialProvision="","",SpecialProvision) -> 
B14: MATERIAL CODE: | F14: =IF(Material="","",Material) ->  | J14: GRADE: | N14: =IF(Grade="","",Grade) -> 
B15: MATERIAL NAME: | F15: =IF(matl_nm="","",matl_nm) -> 
B16: PRODUCER: | F16: =IF(Producer="","",Producer) -> 
B17: AREA ENGINEER: | F17: =IF(AreaEngineer="","",AreaEngineer) ->  | J17: PROJECT MANAGER: | N17: =IF(ProjectManager="","",ProjectManager) -> 
B19: COURSE\LIFT: | F19: =IF(CourseLift="","",CourseLift) ->  | H19: STATION: | J19: =IF(Station="","",Station) ->  | L19: DIST. FROM CL: | P19: =IF(DistFromCL="","",DistFromCL) -> 
B21: Moisture-Density Work Sheet
B23: Specific Gravity=
B24: Hygroscopic Moisture, (%): | G24: =IF(HygroMo="","",HygroMo) -> 
G26: 1 | J26: 2 | M26: 3 | P26: 4
B27: Percent Cement, (%)
B28: Specimen Number: | G28: 1-1 | H28: 1-2 | I28: 1-3 | J28: 2-1 | K28: 2-2 | L28: 2-3 | M28: 3-1 | N28: 3-2 | O28: 3-3 | P28: 4-1 | Q28: 4-2 | R28: 4-3
B29: Percent Water Content, (%):
B30: Mass Material, lbs.
B31: Mass Water Added, lbs. | G31: =IF(G32="","",(G30+G32)*(G29/100)) ->  | H31: =IF(H32="","",(H30+H32)*(H29/100)) ->  | I31: =IF(I32="","",(I30+I32)*(I29/100)) ->  | J31: =IF(J32="","",(J30+J32)*(J29/100)) -> 
B32: Mass Cement Added, lbs. | G32: =IF(PercentCement1="","",(PercentCement1/100)*G30) ->  | H32: =IF(PercentCement1="","",(PercentCement1/100)*H30) ->  | I32: =IF(PercentCement1="","",(PercentCement1/100)*I30) ->  | J32: =IF(PercentCement2="","",(PercentCement2/100)*J30) ->  | K32: =IF(PercentCement2="","",(PercentCement2/100)*K30) ->  | L32: =IF(PercentCement2="","",(PercentCement2/100)*L30) ->  | M32: =IF(PercentCement3="","",(PercentCement3/100)*M30) ->  | N32: =IF(PercentCement3="","",(PercentCement3/100)*N30) ->  | O32: =IF(PercentCement3="","",(PercentCement3/100)*O30) ->  | P32: =IF(PercentCement4="","",(PercentCement4/100)*P30) ->  | Q32: =IF(PercentCement4="","",(PercentCement4/100)*Q30) ->  | R32: =IF(PercentCement4="","",(PercentCement4/100)*R30) -> 
B33: Wet Mass Specimen & Mold,lb
B34: Tare Mass Mold, lb
B35: Wet Mass Specimen, lb | G35: =IF(COUNTBLANK(G33:G34)=2,"",G33-G34) ->  | H35: =IF(COUNTBLANK(H33:H34)=2,"",H33-H34) ->  | M35: =IF(COUNTBLANK(M33:M34)=2,"",M33-M34) -> 
B36: Height of Specimen, in.
B37: Vol. per Linear mm.(in.)
B38: Vol. of Specimen, ft^3 | G38: =IF(COUNTBLANK(G36:G37)=2,"",G37*G36) ->  | H38: =IF(COUNTBLANK(H36:H37)=2,"",H37*H36) -> 
B39: Wet Density of Specimen | G39: =IF(ISERROR(G35/G38),"",G35/G38) ->  | H39: =IF(ISERROR(H35/H38),"",H35/H38) -> 
B40: Wet Mass of Pan & Specimen
B41: Dry Mass Pan & Specimen,lb
B42: Tare Mass Pan ,lb
B43: Dry Mass Material , lb | G43: =IF(COUNTBLANK(G41:G42)=2,"",G41-G42) ->  | H43: =IF(COUNTBLANK(H41:H42)=2,"",H41-H42) -> 
B44: Mass Water,lb | G44: =IF(COUNTBLANK(G40:G41)=2,"",G40-G41) ->  | H44: =IF(COUNTBLANK(H40:H41)=2,"",H40-H41) -> 
B45: Percent Water on Total ,% | G45: =IF(ISERROR((G44/G43)*100),"",(G44/G43)*100) ->  | H45: =IF(ISERROR((H44/H43)*100),"",(H44/H43)*100) -> 
B46: Dry Density (pcf) | G46: =IF(ISERROR(G39/(1+(G45/100))),"",G39/(1+(G45/100))) ->  | H46: =IF(ISERROR(H39/(1+(H45/100))),"",H39/(1+(H45/100))) -> 
B47: Estimated Dry Density (pcf) | G47: =IF(ISERROR(G39/(1+(G29/100))),"",G39/(1+(G29/100))) ->  | H47: =IF(ISERROR(H39/(1+(H29/100))),"",H39/(1+(H29/100))) -> 
B49: Max Density(pcf) | I49: =IF(SpecificGravity="",IF(PercentCement1="","","No S.G."),'Reference (2)'!$B$22) ->  | L49: =IF(SpecificGravity="",IF(PercentCement2="","","No S.G."),'Reference (3)'!$B$22) ->  | O49: =IF(SpecificGravity="",IF(PercentCement3="","","No S.G."),'Reference (4)'!$B$22) ->  | R49: =IF(SpecificGravity="",IF(PercentCement4="","","No S.G."),'Reference (5)'!$B$22) -> 
B50: Max Density (kg/m3) | I50: =IF(ISERROR(I49*(0.4536/0.02832)),"",I49*(0.4536/0.02832)) ->  | L50: =IF(ISERROR(L49*(0.4536/0.02832)),"",L49*(0.4536/0.02832)) ->  | O50: =IF(ISERROR(O49*(0.4536/0.02832)),"",O49*(0.4536/0.02832)) ->  | R50: =IF(ISERROR(R49*(0.4536/0.02832)),"",R49*(0.4536/0.02832)) -> 
B51: Optimum Moisture(%) | I51: =IF(ISERROR('Reference (2)'!$B$23),"",'Reference (2)'!$B$23) ->  | L51: =IF(ISERROR('Reference (3)'!$B$23),"",'Reference (3)'!$B$23) ->  | O51: =IF(ISERROR('Reference (4)'!$B$23),"",'Reference (4)'!$B$23) ->  | R51: =IF(ISERROR('Reference (5)'!$B$23),"",'Reference (5)'!$B$23) -> 
B53: Remarks: | D53: =NOW() -> 2024-08-01T15:56:58.440
B56: Test Method: | D56: Tested By: | J56: Date:
B57: TX120

Sheet RX (hidden)
A1: 656
A2: Fld_nbr | B2: Value | C2: Desc_1 | D2: Desc_2 | E2: Desc_3 | F2: Desc_4 | G2: Desc_5 | H2: Desc_6 | I2: Desc_7
A3: 1 | B3: =IF('Compressive Strength'!$B$64="","",'Compressive Strength'!$B$64) ->  | C3: ='Compressive Strength'!$B$63 -> Remarks:
A4: 2 | B4: =IF('Compressive Strength'!$F$19="","",'Compressive Strength'!$F$19) ->  | C4: =IF('Compressive Strength'!$B$19="","",'Compressive Strength'!$B$19) -> COURSE\LIFT:
A5: 3 | B5: =IF('Compressive Strength'!$D$73="","",'Compressive Strength'!$D$73) ->  | C5: Tested By | D5: =IF('Compressive Strength'!$B$73="","",'Compressive Strength'!$B$73) -> TX120
A6: 4 | B6: =IF('Compressive Strength'!$J$73="","",'Compressive Strength'!$J$73) ->  | C6: Tested Date | D6: =IF('Compressive Strength'!$B$73="","",'Compressive Strength'!$B$73) -> TX120
A7: 5 | B7: =IF('Optimum Moisture'!$D$57="","",'Optimum Moisture'!$D$57) ->  | C7: Tested By | D7: =IF('Optimum Moisture'!$B$57="","",'Optimum Moisture'!$B$57) -> TX120
A8: 6 | B8: =IF('Optimum Moisture'!$J$57="","",'Optimum Moisture'!$J$57) ->  | C8: Tested Date | D8: =IF('Optimum Moisture'!$B$57="","",'Optimum Moisture'!$B$57) -> TX120
A9: 7 | B9: =IF('Tex-113,4-E'!$C$58="","",'Tex-113,4-E'!$C$58) ->  | C9: Tested By | D9: =IF('Tex-113,4-E'!$B$58="","",'Tex-113,4-E'!$B$58) -> TX113
A10: 8 | B10: =IF('Tex-113,4-E'!$F$58="","",'Tex-113,4-E'!$F$58) ->  | C10: Tested Date | D10: =IF('Tex-113,4-E'!$B$58="","",'Tex-113,4-E'!$B$58) -> TX113
A11: 9 | B11: =IF('Tex-113,4-E'!$C$60="","",'Tex-113,4-E'!$C$60) ->  | C11: Tested By | D11: =IF('Tex-113,4-E'!$B$60="","",'Tex-113,4-E'!$B$60) -> Tx114
A12: 10 | B12: =IF('Tex-113,4-E'!$F$60="","",'Tex-113,4-E'!$F$60) ->  | C12: Tested Date | D12: =IF('Tex-113,4-E'!$B$60="","",'Tex-113,4-E'!$B$60) -> Tx114
A13: 11 | B13: =IF('Compressive Strength'!$F$21="","",'Compressive Strength'!$F$21) ->  | C13: =IF('Compressive Strength'!$B$6="","",'Compressive Strength'!$B$6) -> Tex-120-E : PART I | D13: =IF('Compressive Strength'!$B$21="","",'Compressive Strength'!$B$21) -> Performed By Tex-120-E:
A14: 12 | B14: =IF('Compressive Strength'!$G$25="","",'Compressive Strength'!$G$25) ->  | C14: =IF('Compressive Strength'!$B$6="","",'Compressive Strength'!$B$6) -> Tex-120-E : PART I | D14: =IF('Compressive Strength'!$B$25="","",'Compressive Strength'!$B$25) -> Percent Cement, (%) | E14: =IF('Compressive Strength'!$G$24="","",'Compressive Strength'!$G$24) -> 1
A15: 13 | B15: =IF('Compressive Strength'!$J$25="","",'Compressive Strength'!$J$25) ->  | C15: =IF('Compressive Strength'!$B$6="","",'Compressive Strength'!$B$6) -> Tex-120-E : PART I | D15: =IF('Compressive Strength'!$B$25="","",'Compressive Strength'!$B$25) -> Percent Cement, (%) | E15: =IF('Compressive Strength'!$J$24="","",'Compressive Strength'!$J$24) -> 2
A16: 14 | B16: =IF('Compressive Strength'!$M$25="","",'Compressive Strength'!$M$25) ->  | C16: =IF('Compressive Strength'!$B$6="","",'Compressive Strength'!$B$6) -> Tex-120-E : PART I | D16: =IF('Compressive Strength'!$B$25="","",'Compressive Strength'!$B$25) -> Percent Cement, (%) | E16: =IF('Compressive Strength'!$M$24="","",'Compressive Strength'!$M$24) -> 3
A17: 15 | B17: =IF('Compressive Strength'!$P$25="","",'Compressive Strength'!$P$25) ->  | C17: =IF('Compressive Strength'!$B$6="","",'Compressive Strength'!$B$6) -> Tex-120-E : PART I | D17: =IF('Compressive Strength'!$B$25="","",'Compressive Strength'!$B$25) -> Percent Cement, (%) | E17: =IF('Compressive Strength'!$P$24="","",'Compressive Strength'!$P$24) -> 4
A18: 16 | B18: =IF('Compressive Strength'!$G$27="","",'Compressive Strength'!$G$27) ->  | C18: =IF('Compressive Strength'!$B$6="","",'Compressive Strength'!$B$6) -> Tex-120-E : PART I | D18: =IF('Compressive Strength'!$B$27="","",'Compressive Strength'!$B$27) -> Initial Height of Specimen, in.: | E18: =IF('Compressive Strength'!$G$24="","",'Compressive Strength'!$G$24) -> 1 | F18: =IF('Compressive Strength'!$G$26="","",'Compressive Strength'!$G$26) -> 1-1
A19: 17 | B19: =IF('Compressive Strength'!$H$27="","",'Compressive Strength'!$H$27) ->  | C19: =IF('Compressive Strength'!$B$6="","",'Compressive Strength'!$B$6) -> Tex-120-E : PART I | D19: =IF('Compressive Strength'!$B$27="","",'Compressive Strength'!$B$27) -> Initial Height of Specimen, in.: | E19: =IF('Compressive Strength'!$G$24="","",'Compressive Strength'!$G$24) -> 1 | F19: =IF('Compressive Strength'!$H$26="","",'Compressive Strength'!$H$26) -> 1-2
A20: 18 | B20: =IF('Compressive Strength'!$I$27="","",'Compressive Strength'!$I$27) ->  | C20: =IF('Compressive Strength'!$B$6="","",'Compressive Strength'!$B$6) -> Tex-120-E : PART I | D20: =IF('Compressive Strength'!$B$27="","",'Compressive Strength'!$B$27) -> Initial Height of Specimen, in.: | E20: =IF('Compressive Strength'!$G$24="","",'Compressive Strength'!$G$24) -> 1 | F20: =IF('Compressive Strength'!$I$26="","",'Compressive Strength'!$I$26) -> 1-3
A21: 19 | B21: =IF('Compressive Strength'!$J$27="","",'Compressive Strength'!$J$27) ->  | C21: =IF('Compressive Strength'!$B$6="","",'Compressive Strength'!$B$6) -> Tex-120-E : PART I | D21: =IF('Compressive Strength'!$B$27="","",'Compressive Strength'!$B$27) -> Initial Height of Specimen, in.: | E21: =IF('Compressive Strength'!$J$24="","",'Compressive Strength'!$J$24) -> 2 | F21: =IF('Compressive Strength'!$J$26="","",'Compressive Strength'!$J$26) -> 2-1
A22: 20 | B22: =IF('Compressive Strength'!$K$27="","",'Compressive Strength'!$K$27) ->  | C22: =IF('Compressive Strength'!$B$6="","",'Compressive Strength'!$B$6) -> Tex-120-E : PART I | D22: =IF('Compressive Strength'!$B$27="","",'Compressive Strength'!$B$27) -> Initial Height of Specimen, in.: | E22: =IF('Compressive Strength'!$J$24="","",'Compressive Strength'!$J$24) -> 2 | F22: =IF('Compressive Strength'!$K$26="","",'Compressive Strength'!$K$26) -> 2-2
A23: 21 | B23: =IF('Compressive Strength'!$L$27="","",'Compressive Strength'!$L$27) ->  | C23: =IF('Compressive Strength'!$B$6="","",'Compressive Strength'!$B$6) -> Tex-120-E : PART I | D23: =IF('Compressive Strength'!$B$27="","",'Compressive Strength'!$B$27) -> Initial Height of Specimen, in.: | E23: =IF('Compressive Strength'!$J$24="","",'Compressive Strength'!$J$24) -> 2 | F23: =IF('Compressive Strength'!$L$26="","",'Compressive Strength'!$L$26) -> 2-3
A24: 22 | B24: =IF('Compressive Strength'!$M$27="","",'Compressive Strength'!$M$27) ->  | C24: =IF('Compressive Strength'!$B$6="","",'Compressive Strength'!$B$6) -> Tex-120-E : PART I | D24: =IF('Compressive Strength'!$B$27="","",'Compressive Strength'!$B$27) -> Initial Height of Specimen, in.: | E24: =IF('Compressive Strength'!$M$24="","",'Compressive Strength'!$M$24) -> 3 | F24: =IF('Compressive Strength'!$M$26="","",'Compressive Strength'!$M$26) -> 3-1
A25: 23 | B25: =IF('Compressive Strength'!$N$27="","",'Compressive Strength'!$N$27) ->  | C25: =IF('Compressive Strength'!$B$6="","",'Compressive Strength'!$B$6) -> Tex-120-E : PART I | D25: =IF('Compressive Strength'!$B$27="","",'Compressive Strength'!$B$27) -> Initial Height of Specimen, in.: | E25: =IF('Compressive Strength'!$M$24="","",'Compressive Strength'!$M$24) -> 3 | F25: =IF('Compressive Strength'!$N$26="","",'Compressive Strength'!$N$26) -> 3-2
A26: 24 | B26: =IF('Compressive Strength'!$O$27="","",'Compressive Strength'!$O$27) ->  | C26: =IF('Compressive Strength'!$B$6="","",'Compressive Strength'!$B$6) -> Tex-120-E : PART I | D26: =IF('Compressive Strength'!$B$27="","",'Compressive Strength'!$B$27) -> Initial Height of Specimen, in.: | E26: =IF('Compressive Strength'!$M$24="","",'Compressive Strength'!$M$24) -> 3 | F26: =IF('Compressive Strength'!$O$26="","",'Compressive Strength'!$O$26) -> 3-3
A27: 25 | B27: =IF('Compressive Strength'!$P$27="","",'Compressive Strength'!$P$27) ->  | C27: =IF('Compressive Strength'!$B$6="","",'Compressive Strength'!$B$6) -> Tex-120-E : PART I | D27: =IF('Compressive Strength'!$B$27="","",'Compressive Strength'!$B$27) -> Initial Height of Specimen, in.: | E27: =IF('Compressive Strength'!$P$24="","",'Compressive Strength'!$P$24) -> 4 | F27: =IF('Compressive Strength'!$P$26="","",'Compressive Strength'!$P$26) -> 4-1
A28: 26 | B28: =IF('Compressive Strength'!$Q$27="","",'Compressive Strength'!$Q$27) ->  | C28: =IF('Compressive Strength'!$B$6="","",'Compressive Strength'!$B$6) -> Tex-120-E : PART I | D28: =IF('Compressive Strength'!$B$27="","",'Compressive Strength'!$B$27) -> Initial Height of Specimen, in.: | E28: =IF('Compressive Strength'!$P$24="","",'Compressive Strength'!$P$24) -> 4 | F28: =IF('Compressive Strength'!$Q$26="","",'Compressive Strength'!$Q$26) -> 4-2
A29: 27 | B29: =IF('Compressive Strength'!$R$27="","",'Compressive Strength'!$R$27) ->  | C29: =IF('Compressive Strength'!$B$6="","",'Compressive Strength'!$B$6) -> Tex-120-E : PART I | D29: =IF('Compressive Strength'!$B$27="","",'Compressive Strength'!$B$27) -> Initial Height of Specimen, in.: | E29: =IF('Compressive Strength'!$P$24="","",'Compressive Strength'!$P$24) -> 4 | F29: =IF('Compressive Strength'!$R$26="","",'Compressive Strength'!$R$26) -> 4-3
A30: 28 | B30: =IF('Compressive Strength'!$G$28="","",'Compressive Strength'!$G$28) ->  | C30: =IF('Compressive Strength'!$B$6="","",'Compressive Strength'!$B$6) -> Tex-120-E : PART I | D30: =IF('Compressive Strength'!$B$28="","",'Compressive Strength'!$B$28) -> Height of Stone 1, in. | E30: =IF('Compressive Strength'!$G$24="","",'Compressive Strength'!$G$24) -> 1 | F30: =IF('Compressive Strength'!$G$26="","",'Compressive Strength'!$G$26) -> 1-1
A31: 29 | B31: =IF('Compressive Strength'!$H$28="","",'Compressive Strength'!$H$28) ->  | C31: =IF('Compressive Strength'!$B$6="","",'Compressive Strength'!$B$6) -> Tex-120-E : PART I | D31: =IF('Compressive Strength'!$B$28="","",'Compressive Strength'!$B$28) -> Height of Stone 1, in. | E31: =IF('Compressive Strength'!$G$24="","",'Compressive Strength'!$G$24) -> 1 | F31: =IF('Compressive Strength'!$H$26="","",'Compressive Strength'!$H$26) -> 1-2
A32: 30 | B32: =IF('Compressive Strength'!$I$28="","",'Compressive Strength'!$I$28) ->  | C32: =IF('Compressive Strength'!$B$6="","",'Compressive Strength'!$B$6) -> Tex-120-E : PART I | D32: =IF('Compressive Strength'!$B$28="","",'Compressive Strength'!$B$28) -> Height of Stone 1, in. | E32: =IF('Compressive Strength'!$G$24="","",'Compressive Strength'!$G$24) -> 1 | F32: =IF('Compressive Strength'!$I$26="","",'Compressive Strength'!$I$26) -> 1-3
A33: 31 | B33: =IF('Compressive Strength'!$J$28="","",'Compressive Strength'!$J$28) ->  | C33: =IF('Compressive Strength'!$B$6="","",'Compressive Strength'!$B$6) -> Tex-120-E : PART I | D33: =IF('Compressive Strength'!$B$28="","",'Compressive Strength'!$B$28) -> Height of Stone 1, in. | E33: =IF('Compressive Strength'!$J$24="","",'Compressive Strength'!$J$24) -> 2 | F33: =IF('Compressive Strength'!$J$26="","",'Compressive Strength'!$J$26) -> 2-1
A34: 32 | B34: =IF('Compressive Strength'!$K$28="","",'Compressive Strength'!$K$28) ->  | C34: =IF('Compressive Strength'!$B$6="","",'Compressive Strength'!$B$6) -> Tex-120-E : PART I | D34: =IF('Compressive Strength'!$B$28="","",'Compressive Strength'!$B$28) -> Height of Stone 1, in. | E34: =IF('Compressive Strength'!$J$24="","",'Compressive Strength'!$J$24) -> 2 | F34: =IF('Compressive Strength'!$K$26="","",'Compressive Strength'!$K$26) -> 2-2
A35: 33 | B35: =IF('Compressive Strength'!$L$28="","",'Compressive Strength'!$L$28) ->  | C35: =IF('Compressive Strength'!$B$6="","",'Compressive Strength'!$B$6) -> Tex-120-E : PART I | D35: =IF('Compressive Strength'!$B$28="","",'Compressive Strength'!$B$28) -> Height of Stone 1, in. | E35: =IF('Compressive Strength'!$J$24="","",'Compressive Strength'!$J$24) -> 2 | F35: =IF('Compressive Strength'!$L$26="","",'Compressive Strength'!$L$26) -> 2-3
A36: 34 | B36: =IF('Compressive Strength'!$M$28="","",'Compressive Strength'!$M$28) ->  | C36: =IF('Compressive Strength'!$B$6="","",'Compressive Strength'!$B$6) -> Tex-120-E : PART I | D36: =IF('Compressive Strength'!$B$28="","",'Compressive Strength'!$B$28) -> Height of Stone 1, in. | E36: =IF('Compressive Strength'!$M$24="","",'Compressive Strength'!$M$24) -> 3 | F36: =IF('Compressive Strength'!$M$26="","",'Compressive Strength'!$M$26) -> 3-1
A37: 35 | B37: =IF('Compressive Strength'!$N$28="","",'Compressive Strength'!$N$28) ->  | C37: =IF('Compressive Strength'!$B$6="","",'Compressive Strength'!$B$6) -> Tex-120-E : PART I | D37: =IF('Compressive Strength'!$B$28="","",'Compressive Strength'!$B$28) -> Height of Stone 1, in. | E37: =IF('Compressive Strength'!$M$24="","",'Compressive Strength'!$M$24) -> 3 | F37: =IF('Compressive Strength'!$N$26="","",'Compressive Strength'!$N$26) -> 3-2
A38: 36 | B38: =IF('Compressive Strength'!$O$28="","",'Compressive Strength'!$O$28) ->  | C38: =IF('Compressive Strength'!$B$6="","",'Compressive Strength'!$B$6) -> Tex-120-E : PART I | D38: =IF('Compressive Strength'!$B$28="","",'Compressive Strength'!$B$28) -> Height of Stone 1, in. | E38: =IF('Compressive Strength'!$M$24="","",'Compressive Strength'!$M$24) -> 3 | F38: =IF('Compressive Strength'!$O$26="","",'Compressive Strength'!$O$26) -> 3-3
A39: 37 | B39: =IF('Compressive Strength'!$P$28="","",'Compressive Strength'!$P$28) ->  | C39: =IF('Compressive Strength'!$B$6="","",'Compressive Strength'!$B$6) -> Tex-120-E : PART I | D39: =IF('Compressive Strength'!$B$28="","",'Compressive Strength'!$B$28) -> Height of Stone 1, in. | E39: =IF('Compressive Strength'!$P$24="","",'Compressive Strength'!$P$24) -> 4 | F39: =IF('Compressive Strength'!$P$26="","",'Compressive Strength'!$P$26) -> 4-1
A40: 38 | B40: =IF('Compressive Strength'!$Q$28="","",'Compressive Strength'!$Q$28) ->  | C40: =IF('Compressive Strength'!$B$6="","",'Compressive Strength'!$B$6) -> Tex-120-E : PART I | D40: =IF('Compressive Strength'!$B$28="","",'Compressive Strength'!$B$28) -> Height of Stone 1, in. | E40: =IF('Compressive Strength'!$P$24="","",'Compressive Strength'!$P$24) -> 4 | F40: =IF('Compressive Strength'!$Q$26="","",'Compressive Strength'!$Q$26) -> 4-2
A41: 39 | B41: =IF('Compressive Strength'!$R$28="","",'Compressive Strength'!$R$28) ->  | C41: =IF('Compressive Strength'!$B$6="","",'Compressive Strength'!$B$6) -> Tex-120-E : PART I | D41: =IF('Compressive Strength'!$B$28="","",'Compressive Strength'!$B$28) -> Height of Stone 1, in. | E41: =IF('Compressive Strength'!$P$24="","",'Compressive Strength'!$P$24) -> 4 | F41: =IF('Compressive Strength'!$R$26="","",'Compressive Strength'!$R$26) -> 4-3
A42: 40 | B42: =IF('Compressive Strength'!$G$29="","",'Compressive Strength'!$G$29) ->  | C42: =IF('Compressive Strength'!$B$6="","",'Compressive Strength'!$B$6) -> Tex-120-E : PART I | D42: =IF('Compressive Strength'!$B$29="","",'Compressive Strength'!$B$29) -> Height of Stone 2, in. | E42: =IF('Compressive Strength'!$G$24="","",'Compressive Strength'!$G$24) -> 1 | F42: =IF('Compressive Strength'!$G$26="","",'Compressive Strength'!$G$26) -> 1-1
A43: 41 | B43: =IF('Compressive Strength'!$H$29="","",'Compressive Strength'!$H$29) ->  | C43: =IF('Compressive Strength'!$B$6="","",'Compressive Strength'!$B$6) -> Tex-120-E : PART I | D43: =IF('Compressive Strength'!$B$29="","",'Compressive Strength'!$B$29) -> Height of Stone 2, in. | E43: =IF('Compressive Strength'!$G$24="","",'Compressive Strength'!$G$24) -> 1 | F43: =IF('Compressive Strength'!$H$26="","",'Compressive Strength'!$H$26) -> 1-2
A44: 42 | B44: =IF('Compressive Strength'!$I$29="","",'Compressive Strength'!$I$29) ->  | C44: =IF('Compressive Strength'!$B$6="","",'Compressive Strength'!$B$6) -> Tex-120-E : PART I | D44: =IF('Compressive Strength'!$B$29="","",'Compressive Strength'!$B$29) -> Height of Stone 2, in. | E44: =IF('Compressive Strength'!$G$24="","",'Compressive Strength'!$G$24) -> 1 | F44: =IF('Compressive Strength'!$I$26="","",'Compressive Strength'!$I$26) -> 1-3
A45: 43 | B45: =IF('Compressive Strength'!$J$29="","",'Compressive Strength'!$J$29) ->  | C45: =IF('Compressive Strength'!$B$6="","",'Compressive Strength'!$B$6) -> Tex-120-E : PART I | D45: =IF('Compressive Strength'!$B$29="","",'Compressive Strength'!$B$29) -> Height of Stone 2, in. | E45: =IF('Compressive Strength'!$J$24="","",'Compressive Strength'!$J$24) -> 2 | F45: =IF('Compressive Strength'!$J$26="","",'Compressive Strength'!$J$26) -> 2-1
A46: 44 | B46: =IF('Compressive Strength'!$K$29="","",'Compressive Strength'!$K$29) ->  | C46: =IF('Compressive Strength'!$B$6="","",'Compressive Strength'!$B$6) -> Tex-120-E : PART I | D46: =IF('Compressive Strength'!$B$29="","",'Compressive Strength'!$B$29) -> Height of Stone 2, in. | E46: =IF('Compressive Strength'!$J$24="","",'Compressive Strength'!$J$24) -> 2 | F46: =IF('Compressive Strength'!$K$26="","",'Compressive Strength'!$K$26) -> 2-2
A47: 45 | B47: =IF('Compressive Strength'!$L$29="","",'Compressive Strength'!$L$29) ->  | C47: =IF('Compressive Strength'!$B$6="","",'Compressive Strength'!$B$6) -> Tex-120-E : PART I | D47: =IF('Compressive Strength'!$B$29="","",'Compressive Strength'!$B$29) -> Height of Stone 2, in. | E47: =IF('Compressive Strength'!$J$24="","",'Compressive Strength'!$J$24) -> 2 | F47: =IF('Compressive Strength'!$L$26="","",'Compressive Strength'!$L$26) -> 2-3
A48: 46 | B48: =IF('Compressive Strength'!$M$29="","",'Compressive Strength'!$M$29) ->  | C48: =IF('Compressive Strength'!$B$6="","",'Compressive Strength'!$B$6) -> Tex-120-E : PART I | D48: =IF('Compressive Strength'!$B$29="","",'Compressive Strength'!$B$29) -> Height of Stone 2, in. | E48: =IF('Compressive Strength'!$M$24="","",'Compressive Strength'!$M$24) -> 3 | F48: =IF('Compressive Strength'!$M$26="","",'Compressive Strength'!$M$26) -> 3-1
A49: 47 | B49: =IF('Compressive Strength'!$N$29="","",'Compressive Strength'!$N$29) ->  | C49: =IF('Compressive Strength'!$B$6="","",'Compressive Strength'!$B$6) -> Tex-120-E : PART I | D49: =IF('Compressive Strength'!$B$29="","",'Compressive Strength'!$B$29) -> Height of Stone 2, in. | E49: =IF('Compressive Strength'!$M$24="","",'Compressive Strength'!$M$24) -> 3 | F49: =IF('Compressive Strength'!$N$26="","",'Compressive Strength'!$N$26) -> 3-2
A50: 48 | B50: =IF('Compressive Strength'!$O$29="","",'Compressive Strength'!$O$29) ->  | C50: =IF('Compressive Strength'!$B$6="","",'Compressive Strength'!$B$6) -> Tex-120-E : PART I | D50: =IF('Compressive Strength'!$B$29="","",'Compressive Strength'!$B$29) -> Height of Stone 2, in. | E50: =IF('Compressive Strength'!$M$24="","",'Compressive Strength'!$M$24) -> 3 | F50: =IF('Compressive Strength'!$O$26="","",'Compressive Strength'!$O$26) -> 3-3
A51: 49 | B51: =IF('Compressive Strength'!$P$29="","",'Compressive Strength'!$P$29) ->  | C51: =IF('Compressive Strength'!$B$6="","",'Compressive Strength'!$B$6) -> Tex-120-E : PART I | D51: =IF('Compressive Strength'!$B$29="","",'Compressive Strength'!$B$29) -> Height of Stone 2, in. | E51: =IF('Compressive Strength'!$P$24="","",'Compressive Strength'!$P$24) -> 4 | F51: =IF('Compressive Strength'!$P$26="","",'Compressive Strength'!$P$26) -> 4-1
A52: 50 | B52: =IF('Compressive Strength'!$Q$29="","",'Compressive Strength'!$Q$29) ->  | C52: =IF('Compressive Strength'!$B$6="","",'Compressive Strength'!$B$6) -> Tex-120-E : PART I | D52: =IF('Compressive Strength'!$B$29="","",'Compressive Strength'!$B$29) -> Height of Stone 2, in. | E52: =IF('Compressive Strength'!$P$24="","",'Compressive Strength'!$P$24) -> 4 | F52: =IF('Compressive Strength'!$Q$26="","",'Compressive Strength'!$Q$26) -> 4-2
A53: 51 | B53: =IF('Compressive Strength'!$R$29="","",'Compressive Strength'!$R$29) ->  | C53: =IF('Compressive Strength'!$B$6="","",'Compressive Strength'!$B$6) -> Tex-120-E : PART I | D53: =IF('Compressive Strength'!$B$29="","",'Compressive Strength'!$B$29) -> Height of Stone 2, in. | E53: =IF('Compressive Strength'!$P$24="","",'Compressive Strength'!$P$24) -> 4 | F53: =IF('Compressive Strength'!$R$26="","",'Compressive Strength'!$R$26) -> 4-3
A54: 52 | B54: =IF('Compressive Strength'!$G$30="","",'Compressive Strength'!$G$30) ->  | C54: =IF('Compressive Strength'!$B$6="","",'Compressive Strength'!$B$6) -> Tex-120-E : PART I | D54: =IF('Compressive Strength'!$B$30="","",'Compressive Strength'!$B$30) -> New Height of Specimen, in.: | E54: =IF('Compressive Strength'!$G$24="","",'Compressive Strength'!$G$24) -> 1 | F54: =IF('Compressive Strength'!$G$26="","",'Compressive Strength'!$G$26) -> 1-1
A55: 53 | B55: =IF('Compressive Strength'!$H$30="","",'Compressive Strength'!$H$30) ->  | C55: =IF('Compressive Strength'!$B$6="","",'Compressive Strength'!$B$6) -> Tex-120-E : PART I | D55: =IF('Compressive Strength'!$B$30="","",'Compressive Strength'!$B$30) -> New Height of Specimen, in.: | E55: =IF('Compressive Strength'!$G$24="","",'Compressive Strength'!$G$24) -> 1 | F55: =IF('Compressive Strength'!$H$26="","",'Compressive Strength'!$H$26) -> 1-2
A56: 54 | B56: =IF('Compressive Strength'!$I$30="","",'Compressive Strength'!$I$30) ->  | C56: =IF('Compressive Strength'!$B$6="","",'Compressive Strength'!$B$6) -> Tex-120-E : PART I | D56: =IF('Compressive Strength'!$B$30="","",'Compressive Strength'!$B$30) -> New Height of Specimen, in.: | E56: =IF('Compressive Strength'!$G$24="","",'Compressive Strength'!$G$24) -> 1 | F56: =IF('Compressive Strength'!$I$26="","",'Compressive Strength'!$I$26) -> 1-3
A57: 55 | B57: =IF('Compressive Strength'!$J$30="","",'Compressive Strength'!$J$30) ->  | C57: =IF('Compressive Strength'!$B$6="","",'Compressive Strength'!$B$6) -> Tex-120-E : PART I | D57: =IF('Compressive Strength'!$B$30="","",'Compressive Strength'!$B$30) -> New Height of Specimen, in.: | E57: =IF('Compressive Strength'!$J$24="","",'Compressive Strength'!$J$24) -> 2 | F57: =IF('Compressive Strength'!$J$26="","",'Compressive Strength'!$J$26) -> 2-1
A58: 56 | B58: =IF('Compressive Strength'!$K$30="","",'Compressive Strength'!$K$30) ->  | C58: =IF('Compressive Strength'!$B$6="","",'Compressive Strength'!$B$6) -> Tex-120-E : PART I | D58: =IF('Compressive Strength'!$B$30="","",'Compressive Strength'!$B$30) -> New Height of Specimen, in.: | E58: =IF('Compressive Strength'!$J$24="","",'Compressive Strength'!$J$24) -> 2 | F58: =IF('Compressive Strength'!$K$26="","",'Compressive Strength'!$K$26) -> 2-2
A59: 57 | B59: =IF('Compressive Strength'!$L$30="","",'Compressive Strength'!$L$30) ->  | C59: =IF('Compressive Strength'!$B$6="","",'Compressive Strength'!$B$6) -> Tex-120-E : PART I | D59: =IF('Compressive Strength'!$B$30="","",'Compressive Strength'!$B$30) -> New Height of Specimen, in.: | E59: =IF('Compressive Strength'!$J$24="","",'Compressive Strength'!$J$24) -> 2 | F59: =IF('Compressive Strength'!$L$26="","",'Compressive Strength'!$L$26) -> 2-3
A60: 58 | B60: =IF('Compressive Strength'!$M$30="","",'Compressive Strength'!$M$30) ->  | C60: =IF('Compressive Strength'!$B$6="","",'Compressive Strength'!$B$6) -> Tex-120-E : PART I | D60: =IF('Compressive Strength'!$B$30="","",'Compressive Strength'!$B$30) -> New Height of Specimen, in.: | E60: =IF('Compressive Strength'!$M$24="","",'Compressive Strength'!$M$24) -> 3 | F60: =IF('Compressive Strength'!$M$26="","",'Compressive Strength'!$M$26) -> 3-1
A61: 59 | B61: =IF('Compressive Strength'!$N$30="","",'Compressive Strength'!$N$30) ->  | C61: =IF('Compressive Strength'!$B$6="","",'Compressive Strength'!$B$6) -> Tex-120-E : PART I | D61: =IF('Compressive Strength'!$B$30="","",'Compressive Strength'!$B$30) -> New Height of Specimen, in.: | E61: =IF('Compressive Strength'!$M$24="","",'Compressive Strength'!$M$24) -> 3 | F61: =IF('Compressive Strength'!$N$26="","",'Compressive Strength'!$N$26) -> 3-2
A62: 60 | B62: =IF('Compressive Strength'!$O$30="","",'Compressive Strength'!$O$30) ->  | C62: =IF('Compressive Strength'!$B$6="","",'Compressive Strength'!$B$6) -> Tex-120-E : PART I | D62: =IF('Compressive Strength'!$B$30="","",'Compressive Strength'!$B$30) -> New Height of Specimen, in.: | E62: =IF('Compressive Strength'!$M$24="","",'Compressive Strength'!$M$24) -> 3 | F62: =IF('Compressive Strength'!$O$26="","",'Compressive Strength'!$O$26) -> 3-3
A63: 61 | B63: =IF('Compressive Strength'!$P$30="","",'Compressive Strength'!$P$30) ->  | C63: =IF('Compressive Strength'!$B$6="","",'Compressive Strength'!$B$6) -> Tex-120-E : PART I | D63: =IF('Compressive Strength'!$B$30="","",'Compressive Strength'!$B$30) -> New Height of Specimen, in.: | E63: =IF('Compressive Strength'!$P$24="","",'Compressive Strength'!$P$24) -> 4 | F63: =IF('Compressive Strength'!$P$26="","",'Compressive Strength'!$P$26) -> 4-1
A64: 62 | B64: =IF('Compressive Strength'!$Q$30="","",'Compressive Strength'!$Q$30) ->  | C64: =IF('Compressive Strength'!$B$6="","",'Compressive Strength'!$B$6) -> Tex-120-E : PART I | D64: =IF('Compressive Strength'!$B$30="","",'Compressive Strength'!$B$30) -> New Height of Specimen, in.: | E64: =IF('Compressive Strength'!$P$24="","",'Compressive Strength'!$P$24) -> 4 | F64: =IF('Compressive Strength'!$Q$26="","",'Compressive Strength'!$Q$26) -> 4-2
A65: 63 | B65: =IF('Compressive Strength'!$R$30="","",'Compressive Strength'!$R$30) ->  | C65: =IF('Compressive Strength'!$B$6="","",'Compressive Strength'!$B$6) -> Tex-120-E : PART I | D65: =IF('Compressive Strength'!$B$30="","",'Compressive Strength'!$B$30) -> New Height of Specimen, in.: | E65: =IF('Compressive Strength'!$P$24="","",'Compressive Strength'!$P$24) -> 4 | F65: =IF('Compressive Strength'!$R$26="","",'Compressive Strength'!$R$26) -> 4-3
A66: 64 | B66: =IF('Compressive Strength'!$G$31="","",'Compressive Strength'!$G$31) ->  | C66: =IF('Compressive Strength'!$B$6="","",'Compressive Strength'!$B$6) -> Tex-120-E : PART I | D66: =IF('Compressive Strength'!$B$31="","",'Compressive Strength'!$B$31) -> Average Diameter, in.: | E66: =IF('Compressive Strength'!$G$24="","",'Compressive Strength'!$G$24) -> 1 | F66: =IF('Compressive Strength'!$G$26="","",'Compressive Strength'!$G$26) -> 1-1
A67: 65 | B67: =IF('Compressive Strength'!$H$31="","",'Compressive Strength'!$H$31) ->  | C67: =IF('Compressive Strength'!$B$6="","",'Compressive Strength'!$B$6) -> Tex-120-E : PART I | D67: =IF('Compressive Strength'!$B$31="","",'Compressive Strength'!$B$31) -> Average Diameter, in.: | E67: =IF('Compressive Strength'!$G$24="","",'Compressive Strength'!$G$24) -> 1 | F67: =IF('Compressive Strength'!$H$26="","",'Compressive Strength'!$H$26) -> 1-2
A68: 66 | B68: =IF('Compressive Strength'!$I$31="","",'Compressive Strength'!$I$31) ->  | C68: =IF('Compressive Strength'!$B$6="","",'Compressive Strength'!$B$6) -> Tex-120-E : PART I | D68: =IF('Compressive Strength'!$B$31="","",'Compressive Strength'!$B$31) -> Average Diameter, in.: | E68: =IF('Compressive Strength'!$G$24="","",'Compressive Strength'!$G$24) -> 1 | F68: =IF('Compressive Strength'!$I$26="","",'Compressive Strength'!$I$26) -> 1-3
A69: 67 | B69: =IF('Compressive Strength'!$J$31="","",'Compressive Strength'!$J$31) ->  | C69: =IF('Compressive Strength'!$B$6="","",'Compressive Strength'!$B$6) -> Tex-120-E : PART I | D69: =IF('Compressive Strength'!$B$31="","",'Compressive Strength'!$B$31) -> Average Diameter, in.: | E69: =IF('Compressive Strength'!$J$24="","",'Compressive Strength'!$J$24) -> 2 | F69: =IF('Compressive Strength'!$J$26="","",'Compressive Strength'!$J$26) -> 2-1
A70: 68 | B70: =IF('Compressive Strength'!$K$31="","",'Compressive Strength'!$K$31) ->  | C70: =IF('Compressive Strength'!$B$6="","",'Compressive Strength'!$B$6) -> Tex-120-E : PART I | D70: =IF('Compressive Strength'!$B$31="","",'Compressive Strength'!$B$31) -> Average Diameter, in.: | E70: =IF('Compressive Strength'!$J$24="","",'Compressive Strength'!$J$24) -> 2 | F70: =IF('Compressive Strength'!$K$26="","",'Compressive Strength'!$K$26) -> 2-2
A71: 69 | B71: =IF('Compressive Strength'!$L$31="","",'Compressive Strength'!$L$31) ->  | C71: =IF('Compressive Strength'!$B$6="","",'Compressive Strength'!$B$6) -> Tex-120-E : PART I | D71: =IF('Compressive Strength'!$B$31="","",'Compressive Strength'!$B$31) -> Average Diameter, in.: | E71: =IF('Compressive Strength'!$J$24="","",'Compressive Strength'!$J$24) -> 2 | F71: =IF('Compressive Strength'!$L$26="","",'Compressive Strength'!$L$26) -> 2-3
A72: 70 | B72: =IF('Compressive Strength'!$M$31="","",'Compressive Strength'!$M$31) ->  | C72: =IF('Compressive Strength'!$B$6="","",'Compressive Strength'!$B$6) -> Tex-120-E : PART I | D72: =IF('Compressive Strength'!$B$31="","",'Compressive Strength'!$B$31) -> Average Diameter, in.: | E72: =IF('Compressive Strength'!$M$24="","",'Compressive Strength'!$M$24) -> 3 | F72: =IF('Compressive Strength'!$M$26="","",'Compressive Strength'!$M$26) -> 3-1
A73: 71 | B73: =IF('Compressive Strength'!$N$31="","",'Compressive Strength'!$N$31) ->  | C73: =IF('Compressive Strength'!$B$6="","",'Compressive Strength'!$B$6) -> Tex-120-E : PART I | D73: =IF('Compressive Strength'!$B$31="","",'Compressive Strength'!$B$31) -> Average Diameter, in.: | E73: =IF('Compressive Strength'!$M$24="","",'Compressive Strength'!$M$24) -> 3 | F73: =IF('Compressive Strength'!$N$26="","",'Compressive Strength'!$N$26) -> 3-2
A74: 72 | B74: =IF('Compressive Strength'!$O$31="","",'Compressive Strength'!$O$31) ->  | C74: =IF('Compressive Strength'!$B$6="","",'Compressive Strength'!$B$6) -> Tex-120-E : PART I | D74: =IF('Compressive Strength'!$B$31="","",'Compressive Strength'!$B$31) -> Average Diameter, in.: | E74: =IF('Compressive Strength'!$M$24="","",'Compressive Strength'!$M$24) -> 3 | F74: =IF('Compressive Strength'!$O$26="","",'Compressive Strength'!$O$26) -> 3-3
A75: 73 | B75: =IF('Compressive Strength'!$P$31="","",'Compressive Strength'!$P$31) ->  | C75: =IF('Compressive Strength'!$B$6="","",'Compressive Strength'!$B$6) -> Tex-120-E : PART I | D75: =IF('Compressive Strength'!$B$31="","",'Compressive Strength'!$B$31) -> Average Diameter, in.: | E75: =IF('Compressive Strength'!$P$24="","",'Compressive Strength'!$P$24) -> 4 | F75: =IF('Compressive Strength'!$P$26="","",'Compressive Strength'!$P$26) -> 4-1
A76: 74 | B76: =IF('Compressive Strength'!$Q$31="","",'Compressive Strength'!$Q$31) ->  | C76: =IF('Compressive Strength'!$B$6="","",'Compressive Strength'!$B$6) -> Tex-120-E : PART I | D76: =IF('Compressive Strength'!$B$31="","",'Compressive Strength'!$B$31) -> Average Diameter, in.: | E76: =IF('Compressive Strength'!$P$24="","",'Compressive Strength'!$P$24) -> 4 | F76: =IF('Compressive Strength'!$Q$26="","",'Compressive Strength'!$Q$26) -> 4-2
A77: 75 | B77: =IF('Compressive Strength'!$R$31="","",'Compressive Strength'!$R$31) ->  | C77: =IF('Compressive Strength'!$B$6="","",'Compressive Strength'!$B$6) -> Tex-120-E : PART I | D77: =IF('Compressive Strength'!$B$31="","",'Compressive Strength'!$B$31) -> Average Diameter, in.: | E77: =IF('Compressive Strength'!$P$24="","",'Compressive Strength'!$P$24) -> 4 | F77: =IF('Compressive Strength'!$R$26="","",'Compressive Strength'!$R$26) -> 4-3
A78: 76 | B78: =IF('Compressive Strength'!$G$32="","",'Compressive Strength'!$G$32) ->  | C78: =IF('Compressive Strength'!$B$6="","",'Compressive Strength'!$B$6) -> Tex-120-E : PART I | D78: =IF('Compressive Strength'!$B$32="","",'Compressive Strength'!$B$32) -> Circumference, in.: | E78: =IF('Compressive Strength'!$G$24="","",'Compressive Strength'!$G$24) -> 1 | F78: =IF('Compressive Strength'!$G$26="","",'Compressive Strength'!$G$26) -> 1-1
A79: 77 | B79: =IF('Compressive Strength'!$H$32="","",'Compressive Strength'!$H$32) ->  | C79: =IF('Compressive Strength'!$B$6="","",'Compressive Strength'!$B$6) -> Tex-120-E : PART I | D79: =IF('Compressive Strength'!$B$32="","",'Compressive Strength'!$B$32) -> Circumference, in.: | E79: =IF('Compressive Strength'!$G$24="","",'Compressive Strength'!$G$24) -> 1 | F79: =IF('Compressive Strength'!$H$26="","",'Compressive Strength'!$H$26) -> 1-2
A80: 78 | B80: =IF('Compressive Strength'!$I$32="","",'Compressive Strength'!$I$32) ->  | C80: =IF('Compressive Strength'!$B$6="","",'Compressive Strength'!$B$6) -> Tex-120-E : PART I | D80: =IF('Compressive Strength'!$B$32="","",'Compressive Strength'!$B$32) -> Circumference, in.: | E80: =IF('Compressive Strength'!$G$24="","",'Compressive Strength'!$G$24) -> 1 | F80: =IF('Compressive Strength'!$I$26="","",'Compressive Strength'!$I$26) -> 1-3
A81: 79 | B81: =IF('Compressive Strength'!$J$32="","",'Compressive Strength'!$J$32) ->  | C81: =IF('Compressive Strength'!$B$6="","",'Compressive Strength'!$B$6) -> Tex-120-E : PART I | D81: =IF('Compressive Strength'!$B$32="","",'Compressive Strength'!$B$32) -> Circumference, in.: | E81: =IF('Compressive Strength'!$J$24="","",'Compressive Strength'!$J$24) -> 2 | F81: =IF('Compressive Strength'!$J$26="","",'Compressive Strength'!$J$26) -> 2-1
A82: 80 | B82: =IF('Compressive Strength'!$K$32="","",'Compressive Strength'!$K$32) ->  | C82: =IF('Compressive Strength'!$B$6="","",'Compressive Strength'!$B$6) -> Tex-120-E : PART I | D82: =IF('Compressive Strength'!$B$32="","",'Compressive Strength'!$B$32) -> Circumference, in.: | E82: =IF('Compressive Strength'!$J$24="","",'Compressive Strength'!$J$24) -> 2 | F82: =IF('Compressive Strength'!$K$26="","",'Compressive Strength'!$K$26) -> 2-2
A83: 81 | B83: =IF('Compressive Strength'!$L$32="","",'Compressive Strength'!$L$32) ->  | C83: =IF('Compressive Strength'!$B$6="","",'Compressive Strength'!$B$6) -> Tex-120-E : PART I | D83: =IF('Compressive Strength'!$B$32="","",'Compressive Strength'!$B$32) -> Circumference, in.: | E83: =IF('Compressive Strength'!$J$24="","",'Compressive Strength'!$J$24) -> 2 | F83: =IF('Compressive Strength'!$L$26="","",'Compressive Strength'!$L$26) -> 2-3
A84: 82 | B84: =IF('Compressive Strength'!$M$32="","",'Compressive Strength'!$M$32) ->  | C84: =IF('Compressive Strength'!$B$6="","",'Compressive Strength'!$B$6) -> Tex-120-E : PART I | D84: =IF('Compressive Strength'!$B$32="","",'Compressive Strength'!$B$32) -> Circumference, in.: | E84: =IF('Compressive Strength'!$M$24="","",'Compressive Strength'!$M$24) -> 3 | F84: =IF('Compressive Strength'!$M$26="","",'Compressive Strength'!$M$26) -> 3-1
A85: 83 | B85: =IF('Compressive Strength'!$N$32="","",'Compressive Strength'!$N$32) ->  | C85: =IF('Compressive Strength'!$B$6="","",'Compressive Strength'!$B$6) -> Tex-120-E : PART I | D85: =IF('Compressive Strength'!$B$32="","",'Compressive Strength'!$B$32) -> Circumference, in.: | E85: =IF('Compressive Strength'!$M$24="","",'Compressive Strength'!$M$24) -> 3 | F85: =IF('Compressive Strength'!$N$26="","",'Compressive Strength'!$N$26) -> 3-2
A86: 84 | B86: =IF('Compressive Strength'!$O$32="","",'Compressive Strength'!$O$32) ->  | C86: =IF('Compressive Strength'!$B$6="","",'Compressive Strength'!$B$6) -> Tex-120-E : PART I | D86: =IF('Compressive Strength'!$B$32="","",'Compressive Strength'!$B$32) -> Circumference, in.: | E86: =IF('Compressive Strength'!$M$24="","",'Compressive Strength'!$M$24) -> 3 | F86: =IF('Compressive Strength'!$O$26="","",'Compressive Strength'!$O$26) -> 3-3
A87: 85 | B87: =IF('Compressive Strength'!$P$32="","",'Compressive Strength'!$P$32) ->  | C87: =IF('Compressive Strength'!$B$6="","",'Compressive Strength'!$B$6) -> Tex-120-E : PART I | D87: =IF('Compressive Strength'!$B$32="","",'Compressive Strength'!$B$32) -> Circumference, in.: | E87: =IF('Compressive Strength'!$P$24="","",'Compressive Strength'!$P$24) -> 4 | F87: =IF('Compressive Strength'!$P$26="","",'Compressive Strength'!$P$26) -> 4-1
A88: 86 | B88: =IF('Compressive Strength'!$Q$32="","",'Compressive Strength'!$Q$32) ->  | C88: =IF('Compressive Strength'!$B$6="","",'Compressive Strength'!$B$6) -> Tex-120-E : PART I | D88: =IF('Compressive Strength'!$B$32="","",'Compressive Strength'!$B$32) -> Circumference, in.: | E88: =IF('Compressive Strength'!$P$24="","",'Compressive Strength'!$P$24) -> 4 | F88: =IF('Compressive Strength'!$Q$26="","",'Compressive Strength'!$Q$26) -> 4-2
A89: 87 | B89: =IF('Compressive Strength'!$R$32="","",'Compressive Strength'!$R$32) ->  | C89: =IF('Compressive Strength'!$B$6="","",'Compressive Strength'!$B$6) -> Tex-120-E : PART I | D89: =IF('Compressive Strength'!$B$32="","",'Compressive Strength'!$B$32) -> Circumference, in.: | E89: =IF('Compressive Strength'!$P$24="","",'Compressive Strength'!$P$24) -> 4 | F89: =IF('Compressive Strength'!$R$26="","",'Compressive Strength'!$R$26) -> 4-3
A90: 88 | B90: =IF('Compressive Strength'!$G$33="","",'Compressive Strength'!$G$33) ->  | C90: =IF('Compressive Strength'!$B$6="","",'Compressive Strength'!$B$6) -> Tex-120-E : PART I | D90: =IF('Compressive Strength'!$B$33="","",'Compressive Strength'!$B$33) -> Area, in.^2: | E90: =IF('Compressive Strength'!$G$24="","",'Compressive Strength'!$G$24) -> 1 | F90: =IF('Compressive Strength'!$G$26="","",'Compressive Strength'!$G$26) -> 1-1
A91: 89 | B91: =IF('Compressive Strength'!$H$33="","",'Compressive Strength'!$H$33) ->  | C91: =IF('Compressive Strength'!$B$6="","",'Compressive Strength'!$B$6) -> Tex-120-E : PART I | D91: =IF('Compressive Strength'!$B$33="","",'Compressive Strength'!$B$33) -> Area, in.^2: | E91: =IF('Compressive Strength'!$G$24="","",'Compressive Strength'!$G$24) -> 1 | F91: =IF('Compressive Strength'!$H$26="","",'Compressive Strength'!$H$26) -> 1-2
A92: 90 | B92: =IF('Compressive Strength'!$I$33="","",'Compressive Strength'!$I$33) ->  | C92: =IF('Compressive Strength'!$B$6="","",'Compressive Strength'!$B$6) -> Tex-120-E : PART I | D92: =IF('Compressive Strength'!$B$33="","",'Compressive Strength'!$B$33) -> Area, in.^2: | E92: =IF('Compressive Strength'!$G$24="","",'Compressive Strength'!$G$24) -> 1 | F92: =IF('Compressive Strength'!$I$26="","",'Compressive Strength'!$I$26) -> 1-3
A93: 91 | B93: =IF('Compressive Strength'!$J$33="","",'Compressive Strength'!$J$33) ->  | C93: =IF('Compressive Strength'!$B$6="","",'Compressive Strength'!$B$6) -> Tex-120-E : PART I | D93: =IF('Compressive Strength'!$B$33="","",'Compressive Strength'!$B$33) -> Area, in.^2: | E93: =IF('Compressive Strength'!$J$24="","",'Compressive Strength'!$J$24) -> 2 | F93: =IF('Compressive Strength'!$J$26="","",'Compressive Strength'!$J$26) -> 2-1
A94: 92 | B94: =IF('Compressive Strength'!$K$33="","",'Compressive Strength'!$K$33) ->  | C94: =IF('Compressive Strength'!$B$6="","",'Compressive Strength'!$B$6) -> Tex-120-E : PART I | D94: =IF('Compressive Strength'!$B$33="","",'Compressive Strength'!$B$33) -> Area, in.^2: | E94: =IF('Compressive Strength'!$J$24="","",'Compressive Strength'!$J$24) -> 2 | F94: =IF('Compressive Strength'!$K$26="","",'Compressive Strength'!$K$26) -> 2-2
A95: 93 | B95: =IF('Compressive Strength'!$L$33="","",'Compressive Strength'!$L$33) ->  | C95: =IF('Compressive Strength'!$B$6="","",'Compressive Strength'!$B$6) -> Tex-120-E : PART I | D95: =IF('Compressive Strength'!$B$33="","",'Compressive Strength'!$B$33) -> Area, in.^2: | E95: =IF('Compressive Strength'!$J$24="","",'Compressive Strength'!$J$24) -> 2 | F95: =IF('Compressive Strength'!$L$26="","",'Compressive Strength'!$L$26) -> 2-3
A96: 94 | B96: =IF('Compressive Strength'!$M$33="","",'Compressive Strength'!$M$33) ->  | C96: =IF('Compressive Strength'!$B$6="","",'Compressive Strength'!$B$6) -> Tex-120-E : PART I | D96: =IF('Compressive Strength'!$B$33="","",'Compressive Strength'!$B$33) -> Area, in.^2: | E96: =IF('Compressive Strength'!$M$24="","",'Compressive Strength'!$M$24) -> 3 | F96: =IF('Compressive Strength'!$M$26="","",'Compressive Strength'!$M$26) -> 3-1
A97: 95 | B97: =IF('Compressive Strength'!$N$33="","",'Compressive Strength'!$N$33) ->  | C97: =IF('Compressive Strength'!$B$6="","",'Compressive Strength'!$B$6) -> Tex-120-E : PART I | D97: =IF('Compressive Strength'!$B$33="","",'Compressive Strength'!$B$33) -> Area, in.^2: | E97: =IF('Compressive Strength'!$M$24="","",'Compressive Strength'!$M$24) -> 3 | F97: =IF('Compressive Strength'!$N$26="","",'Compressive Strength'!$N$26) -> 3-2
A98: 96 | B98: =IF('Compressive Strength'!$O$33="","",'Compressive Strength'!$O$33) ->  | C98: =IF('Compressive Strength'!$B$6="","",'Compressive Strength'!$B$6) -> Tex-120-E : PART I | D98: =IF('Compressive Strength'!$B$33="","",'Compressive Strength'!$B$33) -> Area, in.^2: | E98: =IF('Compressive Strength'!$M$24="","",'Compressive Strength'!$M$24) -> 3 | F98: =IF('Compressive Strength'!$O$26="","",'Compressive Strength'!$O$26) -> 3-3
A99: 97 | B99: =IF('Compressive Strength'!$P$33="","",'Compressive Strength'!$P$33) ->  | C99: =IF('Compressive Strength'!$B$6="","",'Compressive Strength'!$B$6) -> Tex-120-E : PART I | D99: =IF('Compressive Strength'!$B$33="","",'Compressive Strength'!$B$33) -> Area, in.^2: | E99: =IF('Compressive Strength'!$P$24="","",'Compressive Strength'!$P$24) -> 4 | F99: =IF('Compressive Strength'!$P$26="","",'Compressive Strength'!$P$26) -> 4-1
A100: 98 | B100: =IF('Compressive Strength'!$Q$33="","",'Compressive Strength'!$Q$33) ->  | C100: =IF('Compressive Strength'!$B$6="","",'Compressive Strength'!$B$6) -> Tex-120-E : PART I | D100: =IF('Compressive Strength'!$B$33="","",'Compressive Strength'!$B$33) -> Area, in.^2: | E100: =IF('Compressive Strength'!$P$24="","",'Compressive Strength'!$P$24) -> 4 | F100: =IF('Compressive Strength'!$Q$26="","",'Compressive Strength'!$Q$26) -> 4-2
A101: 99 | B101: =IF('Compressive Strength'!$R$33="","",'Compressive Strength'!$R$33) ->  | C101: =IF('Compressive Strength'!$B$6="","",'Compressive Strength'!$B$6) -> Tex-120-E : PART I | D101: =IF('Compressive Strength'!$B$33="","",'Compressive Strength'!$B$33) -> Area, in.^2: | E101: =IF('Compressive Strength'!$P$24="","",'Compressive Strength'!$P$24) -> 4 | F101: =IF('Compressive Strength'!$R$26="","",'Compressive Strength'!$R$26) -> 4-3
A102: 100 | B102: =IF('Compressive Strength'!$G$34="","",'Compressive Strength'!$G$34) ->  | C102: =IF('Compressive Strength'!$B$6="","",'Compressive Strength'!$B$6) -> Tex-120-E : PART I | D102: =IF('Compressive Strength'!$B$34="","",'Compressive Strength'!$B$34) -> Avg. Cross Sectional Area, in^2: | E102: =IF('Compressive Strength'!$G$24="","",'Compressive Strength'!$G$24) -> 1 | F102: =IF('Compressive Strength'!$G$26="","",'Compressive Strength'!$G$26) -> 1-1
A103: 101 | B103: =IF('Compressive Strength'!$H$34="","",'Compressive Strength'!$H$34) ->  | C103: =IF('Compressive Strength'!$B$6="","",'Compressive Strength'!$B$6) -> Tex-120-E : PART I | D103: =IF('Compressive Strength'!$B$34="","",'Compressive Strength'!$B$34) -> Avg. Cross Sectional Area, in^2: | E103: =IF('Compressive Strength'!$G$24="","",'Compressive Strength'!$G$24) -> 1 | F103: =IF('Compressive Strength'!$H$26="","",'Compressive Strength'!$H$26) -> 1-2
A104: 102 | B104: =IF('Compressive Strength'!$I$34="","",'Compressive Strength'!$I$34) ->  | C104: =IF('Compressive Strength'!$B$6="","",'Compressive Strength'!$B$6) -> Tex-120-E : PART I | D104: =IF('Compressive Strength'!$B$34="","",'Compressive Strength'!$B$34) -> Avg. Cross Sectional Area, in^2: | E104: =IF('Compressive Strength'!$G$24="","",'Compressive Strength'!$G$24) -> 1 | F104: =IF('Compressive Strength'!$I$26="","",'Compressive Strength'!$I$26) -> 1-3
A105: 103 | B105: =IF('Compressive Strength'!$J$34="","",'Compressive Strength'!$J$34) ->  | C105: =IF('Compressive Strength'!$B$6="","",'Compressive Strength'!$B$6) -> Tex-120-E : PART I | D105: =IF('Compressive Strength'!$B$34="","",'Compressive Strength'!$B$34) -> Avg. Cross Sectional Area, in^2: | E105: =IF('Compressive Strength'!$J$24="","",'Compressive Strength'!$J$24) -> 2 | F105: =IF('Compressive Strength'!$J$26="","",'Compressive Strength'!$J$26) -> 2-1
A106: 104 | B106: =IF('Compressive Strength'!$K$34="","",'Compressive Strength'!$K$34) ->  | C106: =IF('Compressive Strength'!$B$6="","",'Compressive Strength'!$B$6) -> Tex-120-E : PART I | D106: =IF('Compressive Strength'!$B$34="","",'Compressive Strength'!$B$34) -> Avg. Cross Sectional Area, in^2: | E106: =IF('Compressive Strength'!$J$24="","",'Compressive Strength'!$J$24) -> 2 | F106: =IF('Compressive Strength'!$K$26="","",'Compressive Strength'!$K$26) -> 2-2
A107: 105 | B107: =IF('Compressive Strength'!$L$34="","",'Compressive Strength'!$L$34) ->  | C107: =IF('Compressive Strength'!$B$6="","",'Compressive Strength'!$B$6) -> Tex-120-E : PART I | D107: =IF('Compressive Strength'!$B$34="","",'Compressive Strength'!$B$34) -> Avg. Cross Sectional Area, in^2: | E107: =IF('Compressive Strength'!$J$24="","",'Compressive Strength'!$J$24) -> 2 | F107: =IF('Compressive Strength'!$L$26="","",'Compressive Strength'!$L$26) -> 2-3
A108: 106 | B108: =IF('Compressive Strength'!$M$34="","",'Compressive Strength'!$M$34) ->  | C108: =IF('Compressive Strength'!$B$6="","",'Compressive Strength'!$B$6) -> Tex-120-E : PART I | D108: =IF('Compressive Strength'!$B$34="","",'Compressive Strength'!$B$34) -> Avg. Cross Sectional Area, in^2: | E108: =IF('Compressive Strength'!$M$24="","",'Compressive Strength'!$M$24) -> 3 | F108: =IF('Compressive Strength'!$M$26="","",'Compressive Strength'!$M$26) -> 3-1
A109: 107 | B109: =IF('Compressive Strength'!$N$34="","",'Compressive Strength'!$N$34) ->  | C109: =IF('Compressive Strength'!$B$6="","",'Compressive Strength'!$B$6) -> Tex-120-E : PART I | D109: =IF('Compressive Strength'!$B$34="","",'Compressive Strength'!$B$34) -> Avg. Cross Sectional Area, in^2: | E109: =IF('Compressive Strength'!$M$24="","",'Compressive Strength'!$M$24) -> 3 | F109: =IF('Compressive Strength'!$N$26="","",'Compressive Strength'!$N$26) -> 3-2
A110: 108 | B110: =IF('Compressive Strength'!$O$34="","",'Compressive Strength'!$O$34) ->  | C110: =IF('Compressive Strength'!$B$6="","",'Compressive Strength'!$B$6) -> Tex-120-E : PART I | D110: =IF('Compressive Strength'!$B$34="","",'Compressive Strength'!$B$34) -> Avg. Cross Sectional Area, in^2: | E110: =IF('Compressive Strength'!$M$24="","",'Compressive Strength'!$M$24) -> 3 | F110: =IF('Compressive Strength'!$O$26="","",'Compressive Strength'!$O$26) -> 3-3
A111: 109 | B111: =IF('Compressive Strength'!$P$34="","",'Compressive Strength'!$P$34) ->  | C111: =IF('Compressive Strength'!$B$6="","",'Compressive Strength'!$B$6) -> Tex-120-E : PART I | D111: =IF('Compressive Strength'!$B$34="","",'Compressive Strength'!$B$34) -> Avg. Cross Sectional Area, in^2: | E111: =IF('Compressive Strength'!$P$24="","",'Compressive Strength'!$P$24) -> 4 | F111: =IF('Compressive Strength'!$P$26="","",'Compressive Strength'!$P$26) -> 4-1
A112: 110 | B112: =IF('Compressive Strength'!$Q$34="","",'Compressive Strength'!$Q$34) ->  | C112: =IF('Compressive Strength'!$B$6="","",'Compressive Strength'!$B$6) -> Tex-120-E : PART I | D112: =IF('Compressive Strength'!$B$34="","",'Compressive Strength'!$B$34) -> Avg. Cross Sectional Area, in^2: | E112: =IF('Compressive Strength'!$P$24="","",'Compressive Strength'!$P$24) -> 4 | F112: =IF('Compressive Strength'!$Q$26="","",'Compressive Strength'!$Q$26) -> 4-2
A113: 111 | B113: =IF('Compressive Strength'!$R$34="","",'Compressive Strength'!$R$34) ->  | C113: =IF('Compressive Strength'!$B$6="","",'Compressive Strength'!$B$6) -> Tex-120-E : PART I | D113: =IF('Compressive Strength'!$B$34="","",'Compressive Strength'!$B$34) -> Avg. Cross Sectional Area, in^2: | E113: =IF('Compressive Strength'!$P$24="","",'Compressive Strength'!$P$24) -> 4 | F113: =IF('Compressive Strength'!$R$26="","",'Compressive Strength'!$R$26) -> 4-3
A114: 112 | B114: =IF('Compressive Strength'!$G$35="","",'Compressive Strength'!$G$35) ->  | C114: =IF('Compressive Strength'!$B$6="","",'Compressive Strength'!$B$6) -> Tex-120-E : PART I | D114: =IF('Compressive Strength'!$B$35="","",'Compressive Strength'!$B$35) -> Lateral Pressure, psi.: | E114: =IF('Compressive Strength'!$G$24="","",'Compressive Strength'!$G$24) -> 1 | F114: =IF('Compressive Strength'!$G$26="","",'Compressive Strength'!$G$26) -> 1-1
A115: 113 | B115: =IF('Compressive Strength'!$H$35="","",'Compressive Strength'!$H$35) ->  | C115: =IF('Compressive Strength'!$B$6="","",'Compressive Strength'!$B$6) -> Tex-120-E : PART I | D115: =IF('Compressive Strength'!$B$35="","",'Compressive Strength'!$B$35) -> Lateral Pressure, psi.: | E115: =IF('Compressive Strength'!$G$24="","",'Compressive Strength'!$G$24) -> 1 | F115: =IF('Compressive Strength'!$H$26="","",'Compressive Strength'!$H$26) -> 1-2
A116: 114 | B116: =IF('Compressive Strength'!$I$35="","",'Compressive Strength'!$I$35) ->  | C116: =IF('Compressive Strength'!$B$6="","",'Compressive Strength'!$B$6) -> Tex-120-E : PART I | D116: =IF('Compressive Strength'!$B$35="","",'Compressive Strength'!$B$35) -> Lateral Pressure, psi.: | E116: =IF('Compressive Strength'!$G$24="","",'Compressive Strength'!$G$24) -> 1 | F116: =IF('Compressive Strength'!$I$26="","",'Compressive Strength'!$I$26) -> 1-3
A117: 115 | B117: =IF('Compressive Strength'!$J$35="","",'Compressive Strength'!$J$35) ->  | C117: =IF('Compressive Strength'!$B$6="","",'Compressive Strength'!$B$6) -> Tex-120-E : PART I | D117: =IF('Compressive Strength'!$B$35="","",'Compressive Strength'!$B$35) -> Lateral Pressure, psi.: | E117: =IF('Compressive Strength'!$J$24="","",'Compressive Strength'!$J$24) -> 2 | F117: =IF('Compressive Strength'!$J$26="","",'Compressive Strength'!$J$26) -> 2-1
A118: 116 | B118: =IF('Compressive Strength'!$K$35="","",'Compressive Strength'!$K$35) ->  | C118: =IF('Compressive Strength'!$B$6="","",'Compressive Strength'!$B$6) -> Tex-120-E : PART I | D118: =IF('Compressive Strength'!$B$35="","",'Compressive Strength'!$B$35) -> Lateral Pressure, psi.: | E118: =IF('Compressive Strength'!$J$24="","",'Compressive Strength'!$J$24) -> 2 | F118: =IF('Compressive Strength'!$K$26="","",'Compressive Strength'!$K$26) -> 2-2
A119: 117 | B119: =IF('Compressive Strength'!$L$35="","",'Compressive Strength'!$L$35) ->  | C119: =IF('Compressive Strength'!$B$6="","",'Compressive Strength'!$B$6) -> Tex-120-E : PART I | D119: =IF('Compressive Strength'!$B$35="","",'Compressive Strength'!$B$35) -> Lateral Pressure, psi.: | E119: =IF('Compressive Strength'!$J$24="","",'Compressive Strength'!$J$24) -> 2 | F119: =IF('Compressive Strength'!$L$26="","",'Compressive Strength'!$L$26) -> 2-3
A120: 118 | B120: =IF('Compressive Strength'!$M$35="","",'Compressive Strength'!$M$35) ->  | C120: =IF('Compressive Strength'!$B$6="","",'Compressive Strength'!$B$6) -> Tex-120-E : PART I | D120: =IF('Compressive Strength'!$B$35="","",'Compressive Strength'!$B$35) -> Lateral Pressure, psi.: | E120: =IF('Compressive Strength'!$M$24="","",'Compressive Strength'!$M$24) -> 3 | F120: =IF('Compressive Strength'!$M$26="","",'Compressive Strength'!$M$26) -> 3-1
A121: 119 | B121: =IF('Compressive Strength'!$N$35="","",'Compressive Strength'!$N$35) ->  | C121: =IF('Compressive Strength'!$B$6="","",'Compressive Strength'!$B$6) -> Tex-120-E : PART I | D121: =IF('Compressive Strength'!$B$35="","",'Compressive Strength'!$B$35) -> Lateral Pressure, psi.: | E121: =IF('Compressive Strength'!$M$24="","",'Compressive Strength'!$M$24) -> 3 | F121: =IF('Compressive Strength'!$N$26="","",'Compressive Strength'!$N$26) -> 3-2
A122: 120 | B122: =IF('Compressive Strength'!$O$35="","",'Compressive Strength'!$O$35) ->  | C122: =IF('Compressive Strength'!$B$6="","",'Compressive Strength'!$B$6) -> Tex-120-E : PART I | D122: =IF('Compressive Strength'!$B$35="","",'Compressive Strength'!$B$35) -> Lateral Pressure, psi.: | E122: =IF('Compressive Strength'!$M$24="","",'Compressive Strength'!$M$24) -> 3 | F122: =IF('Compressive Strength'!$O$26="","",'Compressive Strength'!$O$26) -> 3-3
A123: 121 | B123: =IF('Compressive Strength'!$P$35="","",'Compressive Strength'!$P$35) ->  | C123: =IF('Compressive Strength'!$B$6="","",'Compressive Strength'!$B$6) -> Tex-120-E : PART I | D123: =IF('Compressive Strength'!$B$35="","",'Compressive Strength'!$B$35) -> Lateral Pressure, psi.: | E123: =IF('Compressive Strength'!$P$24="","",'Compressive Strength'!$P$24) -> 4 | F123: =IF('Compressive Strength'!$P$26="","",'Compressive Strength'!$P$26) -> 4-1
A124: 122 | B124: =IF('Compressive Strength'!$Q$35="","",'Compressive Strength'!$Q$35) ->  | C124: =IF('Compressive Strength'!$B$6="","",'Compressive Strength'!$B$6) -> Tex-120-E : PART I | D124: =IF('Compressive Strength'!$B$35="","",'Compressive Strength'!$B$35) -> Lateral Pressure, psi.: | E124: =IF('Compressive Strength'!$P$24="","",'Compressive Strength'!$P$24) -> 4 | F124: =IF('Compressive Strength'!$Q$26="","",'Compressive Strength'!$Q$26) -> 4-2
A125: 123 | B125: =IF('Compressive Strength'!$R$35="","",'Compressive Strength'!$R$35) ->  | C125: =IF('Compressive Strength'!$B$6="","",'Compressive Strength'!$B$6) -> Tex-120-E : PART I | D125: =IF('Compressive Strength'!$B$35="","",'Compressive Strength'!$B$35) -> Lateral Pressure, psi.: | E125: =IF('Compressive Strength'!$P$24="","",'Compressive Strength'!$P$24) -> 4 | F125: =IF('Compressive Strength'!$R$26="","",'Compressive Strength'!$R$26) -> 4-3
A126: 124 | B126: =IF('Compressive Strength'!$G$36="","",'Compressive Strength'!$G$36) ->  | C126: =IF('Compressive Strength'!$B$6="","",'Compressive Strength'!$B$6) -> Tex-120-E : PART I | D126: =IF('Compressive Strength'!$B$36="","",'Compressive Strength'!$B$36) -> Calibration Factor: | E126: =IF('Compressive Strength'!$G$24="","",'Compressive Strength'!$G$24) -> 1 | F126: =IF('Compressive Strength'!$G$26="","",'Compressive Strength'!$G$26) -> 1-1
A127: 125 | B127: =IF('Compressive Strength'!$H$36="","",'Compressive Strength'!$H$36) ->  | C127: =IF('Compressive Strength'!$B$6="","",'Compressive Strength'!$B$6) -> Tex-120-E : PART I | D127: =IF('Compressive Strength'!$B$36="","",'Compressive Strength'!$B$36) -> Calibration Factor: | E127: =IF('Compressive Strength'!$G$24="","",'Compressive Strength'!$G$24) -> 1 | F127: =IF('Compressive Strength'!$H$26="","",'Compressive Strength'!$H$26) -> 1-2
A128: 126 | B128: =IF('Compressive Strength'!$I$36="","",'Compressive Strength'!$I$36) ->  | C128: =IF('Compressive Strength'!$B$6="","",'Compressive Strength'!$B$6) -> Tex-120-E : PART I | D128: =IF('Compressive Strength'!$B$36="","",'Compressive Strength'!$B$36) -> Calibration Factor: | E128: =IF('Compressive Strength'!$G$24="","",'Compressive Strength'!$G$24) -> 1 | F128: =IF('Compressive Strength'!$I$26="","",'Compressive Strength'!$I$26) -> 1-3
A129: 127 | B129: =IF('Compressive Strength'!$J$36="","",'Compressive Strength'!$J$36) ->  | C129: =IF('Compressive Strength'!$B$6="","",'Compressive Strength'!$B$6) -> Tex-120-E : PART I | D129: =IF('Compressive Strength'!$B$36="","",'Compressive Strength'!$B$36) -> Calibration Factor: | E129: =IF('Compressive Strength'!$J$24="","",'Compressive Strength'!$J$24) -> 2 | F129: =IF('Compressive Strength'!$J$26="","",'Compressive Strength'!$J$26) -> 2-1
A130: 128 | B130: =IF('Compressive Strength'!$K$36="","",'Compressive Strength'!$K$36) ->  | C130: =IF('Compressive Strength'!$B$6="","",'Compressive Strength'!$B$6) -> Tex-120-E : PART I | D130: =IF('Compressive Strength'!$B$36="","",'Compressive Strength'!$B$36) -> Calibration Factor: | E130: =IF('Compressive Strength'!$J$24="","",'Compressive Strength'!$J$24) -> 2 | F130: =IF('Compressive Strength'!$K$26="","",'Compressive Strength'!$K$26) -> 2-2
A131: 129 | B131: =IF('Compressive Strength'!$L$36="","",'Compressive Strength'!$L$36) ->  | C131: =IF('Compressive Strength'!$B$6="","",'Compressive Strength'!$B$6) -> Tex-120-E : PART I | D131: =IF('Compressive Strength'!$B$36="","",'Compressive Strength'!$B$36) -> Calibration Factor: | E131: =IF('Compressive Strength'!$J$24="","",'Compressive Strength'!$J$24) -> 2 | F131: =IF('Compressive Strength'!$L$26="","",'Compressive Strength'!$L$26) -> 2-3
A132: 130 | B132: =IF('Compressive Strength'!$M$36="","",'Compressive Strength'!$M$36) ->  | C132: =IF('Compressive Strength'!$B$6="","",'Compressive Strength'!$B$6) -> Tex-120-E : PART I | D132: =IF('Compressive Strength'!$B$36="","",'Compressive Strength'!$B$36) -> Calibration Factor: | E132: =IF('Compressive Strength'!$M$24="","",'Compressive Strength'!$M$24) -> 3 | F132: =IF('Compressive Strength'!$M$26="","",'Compressive Strength'!$M$26) -> 3-1
A133: 131 | B133: =IF('Compressive Strength'!$N$36="","",'Compressive Strength'!$N$36) ->  | C133: =IF('Compressive Strength'!$B$6="","",'Compressive Strength'!$B$6) -> Tex-120-E : PART I | D133: =IF('Compressive Strength'!$B$36="","",'Compressive Strength'!$B$36) -> Calibration Factor: | E133: =IF('Compressive Strength'!$M$24="","",'Compressive Strength'!$M$24) -> 3 | F133: =IF('Compressive Strength'!$N$26="","",'Compressive Strength'!$N$26) -> 3-2
A134: 132 | B134: =IF('Compressive Strength'!$O$36="","",'Compressive Strength'!$O$36) ->  | C134: =IF('Compressive Strength'!$B$6="","",'Compressive Strength'!$B$6) -> Tex-120-E : PART I | D134: =IF('Compressive Strength'!$B$36="","",'Compressive Strength'!$B$36) -> Calibration Factor: | E134: =IF('Compressive Strength'!$M$24="","",'Compressive Strength'!$M$24) -> 3 | F134: =IF('Compressive Strength'!$O$26="","",'Compressive Strength'!$O$26) -> 3-3
A135: 133 | B135: =IF('Compressive Strength'!$P$36="","",'Compressive Strength'!$P$36) ->  | C135: =IF('Compressive Strength'!$B$6="","",'Compressive Strength'!$B$6) -> Tex-120-E : PART I | D135: =IF('Compressive Strength'!$B$36="","",'Compressive Strength'!$B$36) -> Calibration Factor: | E135: =IF('Compressive Strength'!$P$24="","",'Compressive Strength'!$P$24) -> 4 | F135: =IF('Compressive Strength'!$P$26="","",'Compressive Strength'!$P$26) -> 4-1
A136: 134 | B136: =IF('Compressive Strength'!$Q$36="","",'Compressive Strength'!$Q$36) ->  | C136: =IF('Compressive Strength'!$B$6="","",'Compressive Strength'!$B$6) -> Tex-120-E : PART I | D136: =IF('Compressive Strength'!$B$36="","",'Compressive Strength'!$B$36) -> Calibration Factor: | E136: =IF('Compressive Strength'!$P$24="","",'Compressive Strength'!$P$24) -> 4 | F136: =IF('Compressive Strength'!$Q$26="","",'Compressive Strength'!$Q$26) -> 4-2
A137: 135 | B137: =IF('Compressive Strength'!$R$36="","",'Compressive Strength'!$R$36) ->  | C137: =IF('Compressive Strength'!$B$6="","",'Compressive Strength'!$B$6) -> Tex-120-E : PART I | D137: =IF('Compressive Strength'!$B$36="","",'Compressive Strength'!$B$36) -> Calibration Factor: | E137: =IF('Compressive Strength'!$P$24="","",'Compressive Strength'!$P$24) -> 4 | F137: =IF('Compressive Strength'!$R$26="","",'Compressive Strength'!$R$26) -> 4-3
A138: 136 | B138: =IF('Compressive Strength'!$G$37="","",'Compressive Strength'!$G$37) ->  | C138: =IF('Compressive Strength'!$B$6="","",'Compressive Strength'!$B$6) -> Tex-120-E : PART I | D138: =IF('Compressive Strength'!$B$37="","",'Compressive Strength'!$B$37) -> Excitation: | E138: =IF('Compressive Strength'!$G$24="","",'Compressive Strength'!$G$24) -> 1 | F138: =IF('Compressive Strength'!$G$26="","",'Compressive Strength'!$G$26) -> 1-1
A139: 137 | B139: =IF('Compressive Strength'!$H$37="","",'Compressive Strength'!$H$37) ->  | C139: =IF('Compressive Strength'!$B$6="","",'Compressive Strength'!$B$6) -> Tex-120-E : PART I | D139: =IF('Compressive Strength'!$B$37="","",'Compressive Strength'!$B$37) -> Excitation: | E139: =IF('Compressive Strength'!$G$24="","",'Compressive Strength'!$G$24) -> 1 | F139: =IF('Compressive Strength'!$H$26="","",'Compressive Strength'!$H$26) -> 1-2
A140: 138 | B140: =IF('Compressive Strength'!$I$37="","",'Compressive Strength'!$I$37) ->  | C140: =IF('Compressive Strength'!$B$6="","",'Compressive Strength'!$B$6) -> Tex-120-E : PART I | D140: =IF('Compressive Strength'!$B$37="","",'Compressive Strength'!$B$37) -> Excitation: | E140: =IF('Compressive Strength'!$G$24="","",'Compressive Strength'!$G$24) -> 1 | F140: =IF('Compressive Strength'!$I$26="","",'Compressive Strength'!$I$26) -> 1-3
A141: 139 | B141: =IF('Compressive Strength'!$J$37="","",'Compressive Strength'!$J$37) ->  | C141: =IF('Compressive Strength'!$B$6="","",'Compressive Strength'!$B$6) -> Tex-120-E : PART I | D141: =IF('Compressive Strength'!$B$37="","",'Compressive Strength'!$B$37) -> Excitation: | E141: =IF('Compressive Strength'!$J$24="","",'Compressive Strength'!$J$24) -> 2 | F141: =IF('Compressive Strength'!$J$26="","",'Compressive Strength'!$J$26) -> 2-1
A142: 140 | B142: =IF('Compressive Strength'!$K$37="","",'Compressive Strength'!$K$37) ->  | C142: =IF('Compressive Strength'!$B$6="","",'Compressive Strength'!$B$6) -> Tex-120-E : PART I | D142: =IF('Compressive Strength'!$B$37="","",'Compressive Strength'!$B$37) -> Excitation: | E142: =IF('Compressive Strength'!$J$24="","",'Compressive Strength'!$J$24) -> 2 | F142: =IF('Compressive Strength'!$K$26="","",'Compressive Strength'!$K$26) -> 2-2
A143: 141 | B143: =IF('Compressive Strength'!$L$37="","",'Compressive Strength'!$L$37) ->  | C143: =IF('Compressive Strength'!$B$6="","",'Compressive Strength'!$B$6) -> Tex-120-E : PART I | D143: =IF('Compressive Strength'!$B$37="","",'Compressive Strength'!$B$37) -> Excitation: | E143: =IF('Compressive Strength'!$J$24="","",'Compressive Strength'!$J$24) -> 2 | F143: =IF('Compressive Strength'!$L$26="","",'Compressive Strength'!$L$26) -> 2-3
A144: 142 | B144: =IF('Compressive Strength'!$M$37="","",'Compressive Strength'!$M$37) ->  | C144: =IF('Compressive Strength'!$B$6="","",'Compressive Strength'!$B$6) -> Tex-120-E : PART I | D144: =IF('Compressive Strength'!$B$37="","",'Compressive Strength'!$B$37) -> Excitation: | E144: =IF('Compressive Strength'!$M$24="","",'Compressive Strength'!$M$24) -> 3 | F144: =IF('Compressive Strength'!$M$26="","",'Compressive Strength'!$M$26) -> 3-1
A145: 143 | B145: =IF('Compressive Strength'!$N$37="","",'Compressive Strength'!$N$37) ->  | C145: =IF('Compressive Strength'!$B$6="","",'Compressive Strength'!$B$6) -> Tex-120-E : PART I | D145: =IF('Compressive Strength'!$B$37="","",'Compressive Strength'!$B$37) -> Excitation: | E145: =IF('Compressive Strength'!$M$24="","",'Compressive Strength'!$M$24) -> 3 | F145: =IF('Compressive Strength'!$N$26="","",'Compressive Strength'!$N$26) -> 3-2
A146: 144 | B146: =IF('Compressive Strength'!$O$37="","",'Compressive Strength'!$O$37) ->  | C146: =IF('Compressive Strength'!$B$6="","",'Compressive Strength'!$B$6) -> Tex-120-E : PART I | D146: =IF('Compressive Strength'!$B$37="","",'Compressive Strength'!$B$37) -> Excitation: | E146: =IF('Compressive Strength'!$M$24="","",'Compressive Strength'!$M$24) -> 3 | F146: =IF('Compressive Strength'!$O$26="","",'Compressive Strength'!$O$26) -> 3-3
A147: 145 | B147: =IF('Compressive Strength'!$P$37="","",'Compressive Strength'!$P$37) ->  | C147: =IF('Compressive Strength'!$B$6="","",'Compressive Strength'!$B$6) -> Tex-120-E : PART I | D147: =IF('Compressive Strength'!$B$37="","",'Compressive Strength'!$B$37) -> Excitation: | E147: =IF('Compressive Strength'!$P$24="","",'Compressive Strength'!$P$24) -> 4 | F147: =IF('Compressive Strength'!$P$26="","",'Compressive Strength'!$P$26) -> 4-1
A148: 146 | B148: =IF('Compressive Strength'!$Q$37="","",'Compressive Strength'!$Q$37) ->  | C148: =IF('Compressive Strength'!$B$6="","",'Compressive Strength'!$B$6) -> Tex-120-E : PART I | D148: =IF('Compressive Strength'!$B$37="","",'Compressive Strength'!$B$37) -> Excitation: | E148: =IF('Compressive Strength'!$P$24="","",'Compressive Strength'!$P$24) -> 4 | F148: =IF('Compressive Strength'!$Q$26="","",'Compressive Strength'!$Q$26) -> 4-2
A149: 147 | B149: =IF('Compressive Strength'!$R$37="","",'Compressive Strength'!$R$37) ->  | C149: =IF('Compressive Strength'!$B$6="","",'Compressive Strength'!$B$6) -> Tex-120-E : PART I | D149: =IF('Compressive Strength'!$B$37="","",'Compressive Strength'!$B$37) -> Excitation: | E149: =IF('Compressive Strength'!$P$24="","",'Compressive Strength'!$P$24) -> 4 | F149: =IF('Compressive Strength'!$R$26="","",'Compressive Strength'!$R$26) -> 4-3
A150: 148 | B150: =IF('Compressive Strength'!$G$38="","",'Compressive Strength'!$G$38) ->  | C150: =IF('Compressive Strength'!$B$6="","",'Compressive Strength'!$B$6) -> Tex-120-E : PART I | D150: =IF('Compressive Strength'!$B$38="","",'Compressive Strength'!$B$38) -> Zero: | E150: =IF('Compressive Strength'!$G$24="","",'Compressive Strength'!$G$24) -> 1 | F150: =IF('Compressive Strength'!$G$26="","",'Compressive Strength'!$G$26) -> 1-1
A151: 149 | B151: =IF('Compressive Strength'!$H$38="","",'Compressive Strength'!$H$38) ->  | C151: =IF('Compressive Strength'!$B$6="","",'Compressive Strength'!$B$6) -> Tex-120-E : PART I | D151: =IF('Compressive Strength'!$B$38="","",'Compressive Strength'!$B$38) -> Zero: | E151: =IF('Compressive Strength'!$G$24="","",'Compressive Strength'!$G$24) -> 1 | F151: =IF('Compressive Strength'!$H$26="","",'Compressive Strength'!$H$26) -> 1-2
A152: 150 | B152: =IF('Compressive Strength'!$I$38="","",'Compressive Strength'!$I$38) ->  | C152: =IF('Compressive Strength'!$B$6="","",'Compressive Strength'!$B$6) -> Tex-120-E : PART I | D152: =IF('Compressive Strength'!$B$38="","",'Compressive Strength'!$B$38) -> Zero: | E152: =IF('Compressive Strength'!$G$24="","",'Compressive Strength'!$G$24) -> 1 | F152: =IF('Compressive Strength'!$I$26="","",'Compressive Strength'!$I$26) -> 1-3
A153: 151 | B153: =IF('Compressive Strength'!$J$38="","",'Compressive Strength'!$J$38) ->  | C153: =IF('Compressive Strength'!$B$6="","",'Compressive Strength'!$B$6) -> Tex-120-E : PART I | D153: =IF('Compressive Strength'!$B$38="","",'Compressive Strength'!$B$38) -> Zero: | E153: =IF('Compressive Strength'!$J$24="","",'Compressive Strength'!$J$24) -> 2 | F153: =IF('Compressive Strength'!$J$26="","",'Compressive Strength'!$J$26) -> 2-1
A154: 152 | B154: =IF('Compressive Strength'!$K$38="","",'Compressive Strength'!$K$38) ->  | C154: =IF('Compressive Strength'!$B$6="","",'Compressive Strength'!$B$6) -> Tex-120-E : PART I | D154: =IF('Compressive Strength'!$B$38="","",'Compressive Strength'!$B$38) -> Zero: | E154: =IF('Compressive Strength'!$J$24="","",'Compressive Strength'!$J$24) -> 2 | F154: =IF('Compressive Strength'!$K$26="","",'Compressive Strength'!$K$26) -> 2-2
A155: 153 | B155: =IF('Compressive Strength'!$L$38="","",'Compressive Strength'!$L$38) ->  | C155: =IF('Compressive Strength'!$B$6="","",'Compressive Strength'!$B$6) -> Tex-120-E : PART I | D155: =IF('Compressive Strength'!$B$38="","",'Compressive Strength'!$B$38) -> Zero: | E155: =IF('Compressive Strength'!$J$24="","",'Compressive Strength'!$J$24) -> 2 | F155: =IF('Compressive Strength'!$L$26="","",'Compressive Strength'!$L$26) -> 2-3
A156: 154 | B156: =IF('Compressive Strength'!$M$38="","",'Compressive Strength'!$M$38) ->  | C156: =IF('Compressive Strength'!$B$6="","",'Compressive Strength'!$B$6) -> Tex-120-E : PART I | D156: =IF('Compressive Strength'!$B$38="","",'Compressive Strength'!$B$38) -> Zero: | E156: =IF('Compressive Strength'!$M$24="","",'Compressive Strength'!$M$24) -> 3 | F156: =IF('Compressive Strength'!$M$26="","",'Compressive Strength'!$M$26) -> 3-1
A157: 155 | B157: =IF('Compressive Strength'!$N$38="","",'Compressive Strength'!$N$38) ->  | C157: =IF('Compressive Strength'!$B$6="","",'Compressive Strength'!$B$6) -> Tex-120-E : PART I | D157: =IF('Compressive Strength'!$B$38="","",'Compressive Strength'!$B$38) -> Zero: | E157: =IF('Compressive Strength'!$M$24="","",'Compressive Strength'!$M$24) -> 3 | F157: =IF('Compressive Strength'!$N$26="","",'Compressive Strength'!$N$26) -> 3-2
A158: 156 | B158: =IF('Compressive Strength'!$O$38="","",'Compressive Strength'!$O$38) ->  | C158: =IF('Compressive Strength'!$B$6="","",'Compressive Strength'!$B$6) -> Tex-120-E : PART I | D158: =IF('Compressive Strength'!$B$38="","",'Compressive Strength'!$B$38) -> Zero: | E158: =IF('Compressive Strength'!$M$24="","",'Compressive Strength'!$M$24) -> 3 | F158: =IF('Compressive Strength'!$O$26="","",'Compressive Strength'!$O$26) -> 3-3
A159: 157 | B159: =IF('Compressive Strength'!$P$38="","",'Compressive Strength'!$P$38) ->  | C159: =IF('Compressive Strength'!$B$6="","",'Compressive Strength'!$B$6) -> Tex-120-E : PART I | D159: =IF('Compressive Strength'!$B$38="","",'Compressive Strength'!$B$38) -> Zero: | E159: =IF('Compressive Strength'!$P$24="","",'Compressive Strength'!$P$24) -> 4 | F159: =IF('Compressive Strength'!$P$26="","",'Compressive Strength'!$P$26) -> 4-1
A160: 158 | B160: =IF('Compressive Strength'!$Q$38="","",'Compressive Strength'!$Q$38) ->  | C160: =IF('Compressive Strength'!$B$6="","",'Compressive Strength'!$B$6) -> Tex-120-E : PART I | D160: =IF('Compressive Strength'!$B$38="","",'Compressive Strength'!$B$38) -> Zero: | E160: =IF('Compressive Strength'!$P$24="","",'Compressive Strength'!$P$24) -> 4 | F160: =IF('Compressive Strength'!$Q$26="","",'Compressive Strength'!$Q$26) -> 4-2
A161: 159 | B161: =IF('Compressive Strength'!$R$38="","",'Compressive Strength'!$R$38) ->  | C161: =IF('Compressive Strength'!$B$6="","",'Compressive Strength'!$B$6) -> Tex-120-E : PART I | D161: =IF('Compressive Strength'!$B$38="","",'Compressive Strength'!$B$38) -> Zero: | E161: =IF('Compressive Strength'!$P$24="","",'Compressive Strength'!$P$24) -> 4 | F161: =IF('Compressive Strength'!$R$26="","",'Compressive Strength'!$R$26) -> 4-3
A162: 160 | B162: =IF('Compressive Strength'!$G$39="","",'Compressive Strength'!$G$39) ->  | C162: =IF('Compressive Strength'!$B$6="","",'Compressive Strength'!$B$6) -> Tex-120-E : PART I | D162: =IF('Compressive Strength'!$B$39="","",'Compressive Strength'!$B$39) -> Ring Factor, lbs./div | E162: =IF('Compressive Strength'!$G$24="","",'Compressive Strength'!$G$24) -> 1 | F162: =IF('Compressive Strength'!$G$26="","",'Compressive Strength'!$G$26) -> 1-1
A163: 161 | B163: =IF('Compressive Strength'!$H$39="","",'Compressive Strength'!$H$39) ->  | C163: =IF('Compressive Strength'!$B$6="","",'Compressive Strength'!$B$6) -> Tex-120-E : PART I | D163: =IF('Compressive Strength'!$B$39="","",'Compressive Strength'!$B$39) -> Ring Factor, lbs./div | E163: =IF('Compressive Strength'!$G$24="","",'Compressive Strength'!$G$24) -> 1 | F163: =IF('Compressive Strength'!$H$26="","",'Compressive Strength'!$H$26) -> 1-2
A164: 162 | B164: =IF('Compressive Strength'!$I$39="","",'Compressive Strength'!$I$39) ->  | C164: =IF('Compressive Strength'!$B$6="","",'Compressive Strength'!$B$6) -> Tex-120-E : PART I | D164: =IF('Compressive Strength'!$B$39="","",'Compressive Strength'!$B$39) -> Ring Factor, lbs./div | E164: =IF('Compressive Strength'!$G$24="","",'Compressive Strength'!$G$24) -> 1 | F164: =IF('Compressive Strength'!$I$26="","",'Compressive Strength'!$I$26) -> 1-3
A165: 163 | B165: =IF('Compressive Strength'!$J$39="","",'Compressive Strength'!$J$39) ->  | C165: =IF('Compressive Strength'!$B$6="","",'Compressive Strength'!$B$6) -> Tex-120-E : PART I | D165: =IF('Compressive Strength'!$B$39="","",'Compressive Strength'!$B$39) -> Ring Factor, lbs./div | E165: =IF('Compressive Strength'!$J$24="","",'Compressive Strength'!$J$24) -> 2 | F165: =IF('Compressive Strength'!$J$26="","",'Compressive Strength'!$J$26) -> 2-1
A166: 164 | B166: =IF('Compressive Strength'!$K$39="","",'Compressive Strength'!$K$39) ->  | C166: =IF('Compressive Strength'!$B$6="","",'Compressive Strength'!$B$6) -> Tex-120-E : PART I | D166: =IF('Compressive Strength'!$B$39="","",'Compressive Strength'!$B$39) -> Ring Factor, lbs./div | E166: =IF('Compressive Strength'!$J$24="","",'Compressive Strength'!$J$24) -> 2 | F166: =IF('Compressive Strength'!$K$26="","",'Compressive Strength'!$K$26) -> 2-2
A167: 165 | B167: =IF('Compressive Strength'!$L$39="","",'Compressive Strength'!$L$39) ->  | C167: =IF('Compressive Strength'!$B$6="","",'Compressive Strength'!$B$6) -> Tex-120-E : PART I | D167: =IF('Compressive Strength'!$B$39="","",'Compressive Strength'!$B$39) -> Ring Factor, lbs./div | E167: =IF('Compressive Strength'!$J$24="","",'Compressive Strength'!$J$24) -> 2 | F167: =IF('Compressive Strength'!$L$26="","",'Compressive Strength'!$L$26) -> 2-3
A168: 166 | B168: =IF('Compressive Strength'!$M$39="","",'Compressive Strength'!$M$39) ->  | C168: =IF('Compressive Strength'!$B$6="","",'Compressive Strength'!$B$6) -> Tex-120-E : PART I | D168: =IF('Compressive Strength'!$B$39="","",'Compressive Strength'!$B$39) -> Ring Factor, lbs./div | E168: =IF('Compressive Strength'!$M$24="","",'Compressive Strength'!$M$24) -> 3 | F168: =IF('Compressive Strength'!$M$26="","",'Compressive Strength'!$M$26) -> 3-1
A169: 167 | B169: =IF('Compressive Strength'!$N$39="","",'Compressive Strength'!$N$39) ->  | C169: =IF('Compressive Strength'!$B$6="","",'Compressive Strength'!$B$6) -> Tex-120-E : PART I | D169: =IF('Compressive Strength'!$B$39="","",'Compressive Strength'!$B$39) -> Ring Factor, lbs./div | E169: =IF('Compressive Strength'!$M$24="","",'Compressive Strength'!$M$24) -> 3 | F169: =IF('Compressive Strength'!$N$26="","",'Compressive Strength'!$N$26) -> 3-2
A170: 168 | B170: =IF('Compressive Strength'!$O$39="","",'Compressive Strength'!$O$39) ->  | C170: =IF('Compressive Strength'!$B$6="","",'Compressive Strength'!$B$6) -> Tex-120-E : PART I | D170: =IF('Compressive Strength'!$B$39="","",'Compressive Strength'!$B$39) -> Ring Factor, lbs./div | E170: =IF('Compressive Strength'!$M$24="","",'Compressive Strength'!$M$24) -> 3 | F170: =IF('Compressive Strength'!$O$26="","",'Compressive Strength'!$O$26) -> 3-3
A171: 169 | B171: =IF('Compressive Strength'!$P$39="","",'Compressive Strength'!$P$39) ->  | C171: =IF('Compressive Strength'!$B$6="","",'Compressive Strength'!$B$6) -> Tex-120-E : PART I | D171: =IF('Compressive Strength'!$B$39="","",'Compressive Strength'!$B$39) -> Ring Factor, lbs./div | E171: =IF('Compressive Strength'!$P$24="","",'Compressive Strength'!$P$24) -> 4 | F171: =IF('Compressive Strength'!$P$26="","",'Compressive Strength'!$P$26) -> 4-1
A172: 170 | B172: =IF('Compressive Strength'!$Q$39="","",'Compressive Strength'!$Q$39) ->  | C172: =IF('Compressive Strength'!$B$6="","",'Compressive Strength'!$B$6) -> Tex-120-E : PART I | D172: =IF('Compressive Strength'!$B$39="","",'Compressive Strength'!$B$39) -> Ring Factor, lbs./div | E172: =IF('Compressive Strength'!$P$24="","",'Compressive Strength'!$P$24) -> 4 | F172: =IF('Compressive Strength'!$Q$26="","",'Compressive Strength'!$Q$26) -> 4-2
A173: 171 | B173: =IF('Compressive Strength'!$R$39="","",'Compressive Strength'!$R$39) ->  | C173: =IF('Compressive Strength'!$B$6="","",'Compressive Strength'!$B$6) -> Tex-120-E : PART I | D173: =IF('Compressive Strength'!$B$39="","",'Compressive Strength'!$B$39) -> Ring Factor, lbs./div | E173: =IF('Compressive Strength'!$P$24="","",'Compressive Strength'!$P$24) -> 4 | F173: =IF('Compressive Strength'!$R$26="","",'Compressive Strength'!$R$26) -> 4-3
A174: 172 | B174: =IF('Compressive Strength'!$G$40="","",'Compressive Strength'!$G$40) ->  | C174: =IF('Compressive Strength'!$B$6="","",'Compressive Strength'!$B$6) -> Tex-120-E : PART I | D174: =IF('Compressive Strength'!$B$40="","",'Compressive Strength'!$B$40) -> Dead Load, lbs.: | E174: =IF('Compressive Strength'!$G$24="","",'Compressive Strength'!$G$24) -> 1 | F174: =IF('Compressive Strength'!$G$26="","",'Compressive Strength'!$G$26) -> 1-1
A175: 173 | B175: =IF('Compressive Strength'!$H$40="","",'Compressive Strength'!$H$40) ->  | C175: =IF('Compressive Strength'!$B$6="","",'Compressive Strength'!$B$6) -> Tex-120-E : PART I | D175: =IF('Compressive Strength'!$B$40="","",'Compressive Strength'!$B$40) -> Dead Load, lbs.: | E175: =IF('Compressive Strength'!$G$24="","",'Compressive Strength'!$G$24) -> 1 | F175: =IF('Compressive Strength'!$H$26="","",'Compressive Strength'!$H$26) -> 1-2
A176: 174 | B176: =IF('Compressive Strength'!$I$40="","",'Compressive Strength'!$I$40) ->  | C176: =IF('Compressive Strength'!$B$6="","",'Compressive Strength'!$B$6) -> Tex-120-E : PART I | D176: =IF('Compressive Strength'!$B$40="","",'Compressive Strength'!$B$40) -> Dead Load, lbs.: | E176: =IF('Compressive Strength'!$G$24="","",'Compressive Strength'!$G$24) -> 1 | F176: =IF('Compressive Strength'!$I$26="","",'Compressive Strength'!$I$26) -> 1-3
A177: 175 | B177: =IF('Compressive Strength'!$J$40="","",'Compressive Strength'!$J$40) ->  | C177: =IF('Compressive Strength'!$B$6="","",'Compressive Strength'!$B$6) -> Tex-120-E : PART I | D177: =IF('Compressive Strength'!$B$40="","",'Compressive Strength'!$B$40) -> Dead Load, lbs.: | E177: =IF('Compressive Strength'!$J$24="","",'Compressive Strength'!$J$24) -> 2 | F177: =IF('Compressive Strength'!$J$26="","",'Compressive Strength'!$J$26) -> 2-1
A178: 176 | B178: =IF('Compressive Strength'!$K$40="","",'Compressive Strength'!$K$40) ->  | C178: =IF('Compressive Strength'!$B$6="","",'Compressive Strength'!$B$6) -> Tex-120-E : PART I | D178: =IF('Compressive Strength'!$B$40="","",'Compressive Strength'!$B$40) -> Dead Load, lbs.: | E178: =IF('Compressive Strength'!$J$24="","",'Compressive Strength'!$J$24) -> 2 | F178: =IF('Compressive Strength'!$K$26="","",'Compressive Strength'!$K$26) -> 2-2
A179: 177 | B179: =IF('Compressive Strength'!$L$40="","",'Compressive Strength'!$L$40) ->  | C179: =IF('Compressive Strength'!$B$6="","",'Compressive Strength'!$B$6) -> Tex-120-E : PART I | D179: =IF('Compressive Strength'!$B$40="","",'Compressive Strength'!$B$40) -> Dead Load, lbs.: | E179: =IF('Compressive Strength'!$J$24="","",'Compressive Strength'!$J$24) -> 2 | F179: =IF('Compressive Strength'!$L$26="","",'Compressive Strength'!$L$26) -> 2-3
A180: 178 | B180: =IF('Compressive Strength'!$M$40="","",'Compressive Strength'!$M$40) ->  | C180: =IF('Compressive Strength'!$B$6="","",'Compressive Strength'!$B$6) -> Tex-120-E : PART I | D180: =IF('Compressive Strength'!$B$40="","",'Compressive Strength'!$B$40) -> Dead Load, lbs.: | E180: =IF('Compressive Strength'!$M$24="","",'Compressive Strength'!$M$24) -> 3 | F180: =IF('Compressive Strength'!$M$26="","",'Compressive Strength'!$M$26) -> 3-1
A181: 179 | B181: =IF('Compressive Strength'!$N$40="","",'Compressive Strength'!$N$40) ->  | C181: =IF('Compressive Strength'!$B$6="","",'Compressive Strength'!$B$6) -> Tex-120-E : PART I | D181: =IF('Compressive Strength'!$B$40="","",'Compressive Strength'!$B$40) -> Dead Load, lbs.: | E181: =IF('Compressive Strength'!$M$24="","",'Compressive Strength'!$M$24) -> 3 | F181: =IF('Compressive Strength'!$N$26="","",'Compressive Strength'!$N$26) -> 3-2
A182: 180 | B182: =IF('Compressive Strength'!$O$40="","",'Compressive Strength'!$O$40) ->  | C182: =IF('Compressive Strength'!$B$6="","",'Compressive Strength'!$B$6) -> Tex-120-E : PART I | D182: =IF('Compressive Strength'!$B$40="","",'Compressive Strength'!$B$40) -> Dead Load, lbs.: | E182: =IF('Compressive Strength'!$M$24="","",'Compressive Strength'!$M$24) -> 3 | F182: =IF('Compressive Strength'!$O$26="","",'Compressive Strength'!$O$26) -> 3-3
A183: 181 | B183: =IF('Compressive Strength'!$P$40="","",'Compressive Strength'!$P$40) ->  | C183: =IF('Compressive Strength'!$B$6="","",'Compressive Strength'!$B$6) -> Tex-120-E : PART I | D183: =IF('Compressive Strength'!$B$40="","",'Compressive Strength'!$B$40) -> Dead Load, lbs.: | E183: =IF('Compressive Strength'!$P$24="","",'Compressive Strength'!$P$24) -> 4 | F183: =IF('Compressive Strength'!$P$26="","",'Compressive Strength'!$P$26) -> 4-1
A184: 182 | B184: =IF('Compressive Strength'!$Q$40="","",'Compressive Strength'!$Q$40) ->  | C184: =IF('Compressive Strength'!$B$6="","",'Compressive Strength'!$B$6) -> Tex-120-E : PART I | D184: =IF('Compressive Strength'!$B$40="","",'Compressive Strength'!$B$40) -> Dead Load, lbs.: | E184: =IF('Compressive Strength'!$P$24="","",'Compressive Strength'!$P$24) -> 4 | F184: =IF('Compressive Strength'!$Q$26="","",'Compressive Strength'!$Q$26) -> 4-2
A185: 183 | B185: =IF('Compressive Strength'!$R$40="","",'Compressive Strength'!$R$40) ->  | C185: =IF('Compressive Strength'!$B$6="","",'Compressive Strength'!$B$6) -> Tex-120-E : PART I | D185: =IF('Compressive Strength'!$B$40="","",'Compressive Strength'!$B$40) -> Dead Load, lbs.: | E185: =IF('Compressive Strength'!$P$24="","",'Compressive Strength'!$P$24) -> 4 | F185: =IF('Compressive Strength'!$R$26="","",'Compressive Strength'!$R$26) -> 4-3
A186: 184 | B186: =IF('Compressive Strength'!$G$41="","",'Compressive Strength'!$G$41) ->  | C186: =IF('Compressive Strength'!$B$6="","",'Compressive Strength'!$B$6) -> Tex-120-E : PART I | D186: =IF('Compressive Strength'!$B$41="","",'Compressive Strength'!$B$41) -> Piston Correction, lbs.: | E186: =IF('Compressive Strength'!$G$24="","",'Compressive Strength'!$G$24) -> 1 | F186: =IF('Compressive Strength'!$G$26="","",'Compressive Strength'!$G$26) -> 1-1
A187: 185 | B187: =IF('Compressive Strength'!$H$41="","",'Compressive Strength'!$H$41) ->  | C187: =IF('Compressive Strength'!$B$6="","",'Compressive Strength'!$B$6) -> Tex-120-E : PART I | D187: =IF('Compressive Strength'!$B$41="","",'Compressive Strength'!$B$41) -> Piston Correction, lbs.: | E187: =IF('Compressive Strength'!$G$24="","",'Compressive Strength'!$G$24) -> 1 | F187: =IF('Compressive Strength'!$H$26="","",'Compressive Strength'!$H$26) -> 1-2
A188: 186 | B188: =IF('Compressive Strength'!$I$41="","",'Compressive Strength'!$I$41) ->  | C188: =IF('Compressive Strength'!$B$6="","",'Compressive Strength'!$B$6) -> Tex-120-E : PART I | D188: =IF('Compressive Strength'!$B$41="","",'Compressive Strength'!$B$41) -> Piston Correction, lbs.: | E188: =IF('Compressive Strength'!$G$24="","",'Compressive Strength'!$G$24) -> 1 | F188: =IF('Compressive Strength'!$I$26="","",'Compressive Strength'!$I$26) -> 1-3
A189: 187 | B189: =IF('Compressive Strength'!$J$41="","",'Compressive Strength'!$J$41) ->  | C189: =IF('Compressive Strength'!$B$6="","",'Compressive Strength'!$B$6) -> Tex-120-E : PART I | D189: =IF('Compressive Strength'!$B$41="","",'Compressive Strength'!$B$41) -> Piston Correction, lbs.: | E189: =IF('Compressive Strength'!$J$24="","",'Compressive Strength'!$J$24) -> 2 | F189: =IF('Compressive Strength'!$J$26="","",'Compressive Strength'!$J$26) -> 2-1
A190: 188 | B190: =IF('Compressive Strength'!$K$41="","",'Compressive Strength'!$K$41) ->  | C190: =IF('Compressive Strength'!$B$6="","",'Compressive Strength'!$B$6) -> Tex-120-E : PART I | D190: =IF('Compressive Strength'!$B$41="","",'Compressive Strength'!$B$41) -> Piston Correction, lbs.: | E190: =IF('Compressive Strength'!$J$24="","",'Compressive Strength'!$J$24) -> 2 | F190: =IF('Compressive Strength'!$K$26="","",'Compressive Strength'!$K$26) -> 2-2
A191: 189 | B191: =IF('Compressive Strength'!$L$41="","",'Compressive Strength'!$L$41) ->  | C191: =IF('Compressive Strength'!$B$6="","",'Compressive Strength'!$B$6) -> Tex-120-E : PART I | D191: =IF('Compressive Strength'!$B$41="","",'Compressive Strength'!$B$41) -> Piston Correction, lbs.: | E191: =IF('Compressive Strength'!$J$24="","",'Compressive Strength'!$J$24) -> 2 | F191: =IF('Compressive Strength'!$L$26="","",'Compressive Strength'!$L$26) -> 2-3
A192: 190 | B192: =IF('Compressive Strength'!$M$41="","",'Compressive Strength'!$M$41) ->  | C192: =IF('Compressive Strength'!$B$6="","",'Compressive Strength'!$B$6) -> Tex-120-E : PART I | D192: =IF('Compressive Strength'!$B$41="","",'Compressive Strength'!$B$41) -> Piston Correction, lbs.: | E192: =IF('Compressive Strength'!$M$24="","",'Compressive Strength'!$M$24) -> 3 | F192: =IF('Compressive Strength'!$M$26="","",'Compressive Strength'!$M$26) -> 3-1
A193: 191 | B193: =IF('Compressive Strength'!$N$41="","",'Compressive Strength'!$N$41) ->  | C193: =IF('Compressive Strength'!$B$6="","",'Compressive Strength'!$B$6) -> Tex-120-E : PART I | D193: =IF('Compressive Strength'!$B$41="","",'Compressive Strength'!$B$41) -> Piston Correction, lbs.: | E193: =IF('Compressive Strength'!$M$24="","",'Compressive Strength'!$M$24) -> 3 | F193: =IF('Compressive Strength'!$N$26="","",'Compressive Strength'!$N$26) -> 3-2
A194: 192 | B194: =IF('Compressive Strength'!$O$41="","",'Compressive Strength'!$O$41) ->  | C194: =IF('Compressive Strength'!$B$6="","",'Compressive Strength'!$B$6) -> Tex-120-E : PART I | D194: =IF('Compressive Strength'!$B$41="","",'Compressive Strength'!$B$41) -> Piston Correction, lbs.: | E194: =IF('Compressive Strength'!$M$24="","",'Compressive Strength'!$M$24) -> 3 | F194: =IF('Compressive Strength'!$O$26="","",'Compressive Strength'!$O$26) -> 3-3
A195: 193 | B195: =IF('Compressive Strength'!$P$41="","",'Compressive Strength'!$P$41) ->  | C195: =IF('Compressive Strength'!$B$6="","",'Compressive Strength'!$B$6) -> Tex-120-E : PART I | D195: =IF('Compressive Strength'!$B$41="","",'Compressive Strength'!$B$41) -> Piston Correction, lbs.: | E195: =IF('Compressive Strength'!$P$24="","",'Compressive Strength'!$P$24) -> 4 | F195: =IF('Compressive Strength'!$P$26="","",'Compressive Strength'!$P$26) -> 4-1
A196: 194 | B196: =IF('Compressive Strength'!$Q$41="","",'Compressive Strength'!$Q$41) ->  | C196: =IF('Compressive Strength'!$B$6="","",'Compressive Strength'!$B$6) -> Tex-120-E : PART I | D196: =IF('Compressive Strength'!$B$41="","",'Compressive Strength'!$B$41) -> Piston Correction, lbs.: | E196: =IF('Compressive Strength'!$P$24="","",'Compressive Strength'!$P$24) -> 4 | F196: =IF('Compressive Strength'!$Q$26="","",'Compressive Strength'!$Q$26) -> 4-2
A197: 195 | B197: =IF('Compressive Strength'!$R$41="","",'Compressive Strength'!$R$41) ->  | C197: =IF('Compressive Strength'!$B$6="","",'Compressive Strength'!$B$6) -> Tex-120-E : PART I | D197: =IF('Compressive Strength'!$B$41="","",'Compressive Strength'!$B$41) -> Piston Correction, lbs.: | E197: =IF('Compressive Strength'!$P$24="","",'Compressive Strength'!$P$24) -> 4 | F197: =IF('Compressive Strength'!$R$26="","",'Compressive Strength'!$R$26) -> 4-3
A198: 196 | B198: =IF('Compressive Strength'!$G$42="","",'Compressive Strength'!$G$42) ->  | C198: =IF('Compressive Strength'!$B$6="","",'Compressive Strength'!$B$6) -> Tex-120-E : PART I | D198: =IF('Compressive Strength'!$B$42="","",'Compressive Strength'!$B$42) -> Max. Load Reading, div.: | E198: =IF('Compressive Strength'!$G$24="","",'Compressive Strength'!$G$24) -> 1 | F198: =IF('Compressive Strength'!$G$26="","",'Compressive Strength'!$G$26) -> 1-1
A199: 197 | B199: =IF('Compressive Strength'!$H$42="","",'Compressive Strength'!$H$42) ->  | C199: =IF('Compressive Strength'!$B$6="","",'Compressive Strength'!$B$6) -> Tex-120-E : PART I | D199: =IF('Compressive Strength'!$B$42="","",'Compressive Strength'!$B$42) -> Max. Load Reading, div.: | E199: =IF('Compressive Strength'!$G$24="","",'Compressive Strength'!$G$24) -> 1 | F199: =IF('Compressive Strength'!$H$26="","",'Compressive Strength'!$H$26) -> 1-2
A200: 198 | B200: =IF('Compressive Strength'!$I$42="","",'Compressive Strength'!$I$42) ->  | C200: =IF('Compressive Strength'!$B$6="","",'Compressive Strength'!$B$6) -> Tex-120-E : PART I | D200: =IF('Compressive Strength'!$B$42="","",'Compressive Strength'!$B$42) -> Max. Load Reading, div.: | E200: =IF('Compressive Strength'!$G$24="","",'Compressive Strength'!$G$24) -> 1 | F200: =IF('Compressive Strength'!$I$26="","",'Compressive Strength'!$I$26) -> 1-3
... 458 more rows

Sheet Log (hidden)
A1: *** Add Range Name "Version" Cell K68 =IF(AuthorizedDate<38257,"1","2")
A4: *** New =IF(G25=0,0,IF(AutoMan="automated",(G41+G38)/IF(Version="1",G32,G31),(((G43*G37)+G38)/G31)))
A5: *** Old =IF(G25=0,0,IF(AutoMan="automated",(G41+G38)/G31,(((G43*G37)+G38)/G31))
A7: 11/1/2010 changed the % cement to a tenth of a decimal on compressive strength sheet Row 25.

Sheet Reference (hidden)
A1: m1 | B1: =(B12-B11)/(C12-C11) -> 
A2: b1 | B2: =B11-B1*C11 ->  | C2: X-Peak | D2: =(B4-B2)/(B1-B3) -> 
A3: m2 | B3: =IF(AND(B13>0,'Tex-113,4-E'!H46=0),B1*-1,(B14-B13)/(C14-C13)) ->  | C3: Y-Peak | D3: =B1*D2+B2 -> 
A4: b2 | B4: =B13-C13*B3 -> 
A10: N | B10: Y | C10: X | D10: X^2
A11: 1 | B11: ='Tex-113,4-E'!E48 ->  | C11: ='Tex-113,4-E'!E47 ->  | D11: =C11^2 -> 
A12: 2 | B12: ='Tex-113,4-E'!F48 ->  | C12: ='Tex-113,4-E'!F47 -> 
A13: 3 | B13: ='Tex-113,4-E'!G48 ->  | C13: ='Tex-113,4-E'!G47 -> 
A14: 4 | B14: =IF(AND(B13>0,'Tex-113,4-E'!H46=0),D3,'Tex-113,4-E'!H48) ->  | C14: =IF(AND(C13>0,'Tex-113,4-E'!H46=0),D2,'Tex-113,4-E'!H47) -> 
A15: 5 | B15: =D3 ->  | C15: =$D$2 -> 
A16: 6 | B16: =D3 ->  | C16: =$D$2 -> 
A17: 7 | B17: =D3 ->  | C17: =$D$2 -> 
A18: 8 | B18: =D3 ->  | C18: =D2 -> 
A19: SUM | B19: =SUM(B13:B17) ->  | C19: =SUM(C13:C17) ->  | D19: =SUM(D11:D17) -> 
A22: MAX DEN | B22: =B27*B23^2+B26*B23+B25 -> 
A23: MAX W | B23: =-B26/(2*B27) -> 
A25: Ao | B25: =INDEX(LINEST($B$11:$B$14,$C$11:$D$14),3) -> 
A26: A1 | B26: =INDEX(LINEST($B$11:$B$14,$C$11:$D$14),2) ->  | D26: SG | E26: =IF(AND('Tex-113,4-E'!E24>0,'Tex-113,4-E'!E23>0),'Tex-113,4-E'!E25,"") -> 
A27: A2 | B27: =INDEX(LINEST($B$11:$B$14,$C$11:$D$14),1) -> 
A29: W | B29: dry density | C29: zav
A30: =IF('Tex-113,4-E'!H30>0,'Tex-113,4-E'!H30+8,'Tex-113,4-E'!G30+8) -> 8 | B30: =$B$25+$B$26*A30+$B$27*A30^2 ->  | C30: =($E$26*62.4)/(1+(A30/100)*$E$26) -> 
A31: =A30-0.1 -> 7.9
A32: 7.8
A33: 7.7
A34: 7.6
A35: 7.5
A36: 7.4
A37: 7.3
A38: 7.2
A39: 7.1
A40: 7
A41: 6.9
A42: 6.8
A43: 6.7
A44: 6.6
A45: 6.5
A46: 6.4
A47: 6.3
A48: 6.2
A49: 6.1
A50: 6
A51: 5.9
A52: 5.8
A53: 5.7
A54: 5.6
A55: 5.5
A56: 5.4
A57: 5.3
A58: 5.2
A59: 5.1
A60: 5
A61: 4.9
A62: 4.8 | B62: =$B$25+$B$26*A62+$B$27*A62^2 ->  | C62: =($E$26*62.4)/(1+(A62/100)*$E$26) -> 
A63: =A62-0.1 -> 4.7
A64: 4.6
A65: 4.5
A66: 4.4
A67: 4.3
A68: 4.2
A69: 4.1
A70: 4
A71: 3.9
A72: 3.8
A73: 3.7
A74: 3.6
A75: 3.5
A76: 3.4
A77: 3.3
A78: 3.2
A79: 3.1
A80: 3
A81: 2.9
A82: 2.8
A83: 2.7
A84: 2.6
A85: 2.5
A86: 2.4
A87: 2.3
A88: 2.2
A89: 2.1
A90: 2
A91: 1.9
A92: 1.8
A93: 1.7
A94: 1.6 | B94: =$B$25+$B$26*A94+$B$27*A94^2 ->  | C94: =($E$26*62.4)/(1+(A94/100)*$E$26) -> 
A95: =A94-0.1 -> 1.5
A96: 1.4
A97: 1.3
A98: 1.2
A99: 1.1
A100: 1
A101: 0.9
A102: 0.8
A103: 0.7
A104: 0.6
A105: 0.5
A106: 0.4
A107: 0.3
A108: 0.2
A109: 0.1
A110: 0
A111: -0.1
A112: -0.2
A113: -0.3
A114: -0.4
A115: -0.5
A116: -0.6
A117: -0.7
A118: -0.8
A119: -0.9
A120: -1
A121: -1.1
A122: -1.2
A123: -1.3
A124: -1.4
A125: -1.5
A126: -1.6 | B126: =$B$25+$B$26*A126+$B$27*A126^2 ->  | C126: =($E$26*62.4)/(1+(A126/100)*$E$26) -> 
A127: =A126-0.1 -> -1.7
A128: -1.8
A129: -1.9
A130: -2
A131: -2.1
A132: -2.2
A133: -2.3
A134: -2.4
A135: -2.5
A136: -2.6
A137: -2.7
A138: -2.8
A139: -2.9
A140: -3
A141: -3.1
A142: -3.2
A143: -3.3
A144: -3.4
A145: -3.5
A146: -3.6
A147: -3.7
A148: -3.8
A149: -3.9
A150: -4
A151: -4.1
A152: -4.2
A153: -4.3
A154: -4.4
A155: -4.5
A156: -4.6
A157: -4.7
A158: -4.8 | B158: =$B$25+$B$26*A158+$B$27*A158^2 ->  | C158: =($E$26*62.4)/(1+(A158/100)*$E$26) -> 
A159: =A158-0.1 -> -4.9
A160: -5
A161: -5.1
A162: -5.2
A163: -5.3
A164: -5.4
A165: -5.5
A166: -5.6
A167: -5.7
A168: -5.8
A169: -5.9
A170: -6
A171: -6.1
A172: -6.2
A173: -6.3
A174: -6.4
A175: -6.5
A176: -6.6
A177: -6.7
A178: -6.8
A179: -6.9
A180: -7
A181: -7.1
A182: -7.2
A183: -7.3
A184: -7.4
A185: -7.5
A186: -7.6
A187: -7.7
A188: -7.8
A189: -7.9
A190: -8 | B190: =$B$25+$B$26*A190+$B$27*A190^2 ->  | C190: =($E$26*62.4)/(1+(A190/100)*$E$26) -> 
A191: =A190-0.1 -> -8.1
A192: -8.2
A193: -8.3
A194: -8.4
A195: -8.5
A196: -8.6
A197: -8.7
A198: -8.8
A199: -8.9
A200: -9
A201: -9.1

Sheet Reference (2) (hidden)
A1: m1 | B1: =(B12-B11)/(C12-C11) -> 
A2: b1 | B2: =B11-B1*C11 ->  | C2: X-Peak | D2: =(B4-B2)/(B1-B3) -> 
A3: m2 | B3: =IF(B13>0,B1*-1,(B14-B13)/(C14-C13)) ->  | C3: Y-Peak | D3: =B1*D2+B2 -> 
A4: b2 | B4: =B13-C13*B3 -> 
A10: N | B10: Y | C10: X | D10: X^2
A11: 1 | B11: ='Optimum Moisture'!G46 ->  | C11: ='Optimum Moisture'!G45 ->  | D11: =C11^2 -> 
A12: 2 | B12: ='Optimum Moisture'!H46 ->  | C12: ='Optimum Moisture'!H45 -> 
A13: 3 | B13: ='Optimum Moisture'!I46 ->  | C13: ='Optimum Moisture'!I45 -> 
A14: 4 | B14: =D3 ->  | C14: =D2 -> 
A15: 5 | B15: =D3 ->  | C15: =$D$2 -> 
A16: 6 | B16: =D3 ->  | C16: =$D$2 -> 
A17: 7 | B17: =D3 ->  | C17: =$D$2 -> 
A18: 8 | B18: =D3 ->  | C18: =D2 -> 
A19: SUM | B19: =SUM(B13:B17) ->  | C19: =SUM(C13:C17) ->  | D19: =SUM(D11:D17) -> 
A22: MAX DEN | B22: =B27*B23^2+B26*B23+B25 -> 
A23: MAX W | B23: =-B26/(2*B27) -> 
A25: Ao | B25: =INDEX(LINEST($B$11:$B$14,$C$11:$D$14),3) -> 
A26: A1 | B26: =INDEX(LINEST($B$11:$B$14,$C$11:$D$14),2) ->  | D26: SG | E26: =SpecificGravity -> 
A27: A2 | B27: =INDEX(LINEST($B$11:$B$14,$C$11:$D$14),1) -> 
A29: W | B29: dry density | C29: zav
A30: ='Optimum Moisture'!$I$29 -> 0 | B30: =$B$25+$B$26*A30+$B$27*A30^2 ->  | C30: =($E$26*62.4)/(1+(A30/100)*$E$26) -> 
A31: =A30-0.1 -> -0.1
A32: -0.2
A33: -0.3
A34: -0.4
A35: -0.5
A36: -0.6
A37: -0.7
A38: -0.8
A39: -0.9
A40: -1
A41: -1.1
A42: -1.2
A43: -1.3
A44: -1.4
A45: -1.5
A46: -1.6
A47: -1.7
A48: -1.8
A49: -1.9
A50: -2
A51: -2.1
A52: -2.2
A53: -2.3
A54: -2.4
A55: -2.5
A56: -2.6
A57: -2.7
A58: -2.8
A59: -2.9
A60: -3
A61: -3.1
A62: -3.2 | B62: =$B$25+$B$26*A62+$B$27*A62^2 ->  | C62: =($E$26*62.4)/(1+(A62/100)*$E$26) -> 
A63: =A62-0.1 -> -3.3
A64: -3.4
A65: -3.5
A66: -3.6
A67: -3.7
A68: -3.8
A69: -3.9
A70: -4
A71: -4.1
A72: -4.2
A73: -4.3
A74: -4.4
A75: -4.5
A76: -4.6
A77: -4.7
A78: -4.8
A79: -4.9
A80: -5
A81: -5.1
A82: -5.2
A83: -5.3
A84: -5.4
A85: -5.5
A86: -5.6
A87: -5.7
A88: -5.8
A89: -5.9
A90: -6
A91: -6.1
A92: -6.2
A93: -6.3
A94: -6.4 | B94: =$B$25+$B$26*A94+$B$27*A94^2 ->  | C94: =($E$26*62.4)/(1+(A94/100)*$E$26) -> 
A95: =A94-0.1 -> -6.5
A96: -6.6
A97: -6.7
A98: -6.8
A99: -6.9
A100: -7
A101: -7.1
A102: -7.2
A103: -7.3
A104: -7.4
A105: -7.5
A106: -7.6
A107: -7.7
A108: -7.8
A109: -7.9
A110: -8
A111: -8.1
A112: -8.2
A113: -8.3
A114: -8.4
A115: -8.5
A116: -8.6
A117: -8.7
A118: -8.8
A119: -8.9
A120: -9
A121: -9.1
A122: -9.2
A123: -9.3
A124: -9.4
A125: -9.5
A126: -9.6 | B126: =$B$25+$B$26*A126+$B$27*A126^2 ->  | C126: =($E$26*62.4)/(1+(A126/100)*$E$26) -> 
A127: =A126-0.1 -> -9.7
A128: -9.8
A129: -9.9
A130: -10
A131: -10.1
A132: -10.2
A133: -10.3
A134: -10.4
A135: -10.5
A136: -10.6
A137: -10.7
A138: -10.8
A139: -10.9
A140: -11
A141: -11.1
A142: -11.2
A143: -11.3
A144: -11.4
A145: -11.5
A146: -11.6
A147: -11.7
A148: -11.8
A149: -11.9
A150: -12
A151: -12.1
A152: -12.2
A153: -12.3
A154: -12.4
A155: -12.5
A156: -12.6
A157: -12.7
A158: -12.8 | B158: =$B$25+$B$26*A158+$B$27*A158^2 ->  | C158: =($E$26*62.4)/(1+(A158/100)*$E$26) -> 
A159: =A158-0.1 -> -12.9
A160: -13
A161: -13.1
A162: -13.2
A163: -13.3
A164: -13.4
A165: -13.5
A166: -13.6
A167: -13.7
A168: -13.8
A169: -13.9
A170: -14
A171: -14.1
A172: -14.2
A173: -14.3
A174: -14.4
A175: -14.5
A176: -14.6
A177: -14.7
A178: -14.8
A179: -14.9
A180: -15
A181: -15.1
A182: -15.2
A183: -15.3
A184: -15.4
A185: -15.5
A186: -15.6
A187: -15.7
A188: -15.8
A189: -15.9
A190: -16 | B190: =$B$25+$B$26*A190+$B$27*A190^2 ->  | C190: =($E$26*62.4)/(1+(A190/100)*$E$26) -> 
A191: =A190-0.1 -> -16.1
A192: -16.2
A193: -16.3
A194: -16.4
A195: -16.5
A196: -16.6
A197: -16.7
A198: -16.8
A199: -16.9
A200: -17
A201: -17.1

Sheet Reference (3) (hidden)
A1: m1 | B1: =(B12-B11)/(C12-C11) -> 
A2: b1 | B2: =B11-B1*C11 ->  | C2: X-Peak | D2: =(B4-B2)/(B1-B3) -> 
A3: m2 | B3: =IF(B13>0,B1*-1,(B14-B13)/(C14-C13)) ->  | C3: Y-Peak | D3: =B1*D2+B2 -> 
A4: b2 | B4: =B13-C13*B3 -> 
A10: N | B10: Y | C10: X | D10: X^2
A11: 1 | B11: ='Optimum Moisture'!J46 ->  | C11: ='Optimum Moisture'!J45 ->  | D11: =C11^2 -> 
A12: 2 | B12: ='Optimum Moisture'!K46 ->  | C12: ='Optimum Moisture'!K45 -> 
A13: 3 | B13: ='Optimum Moisture'!L46 ->  | C13: ='Optimum Moisture'!L45 -> 
A14: 4 | B14: =D3 ->  | C14: =D2 -> 
A15: 5 | B15: =D3 ->  | C15: =$D$2 -> 
A16: 6 | B16: =D3 ->  | C16: =$D$2 -> 
A17: 7 | B17: =D3 ->  | C17: =$D$2 -> 
A18: 8 | B18: =D3 ->  | C18: =D2 -> 
A19: SUM | B19: =SUM(B13:B17) ->  | C19: =SUM(C13:C17) ->  | D19: =SUM(D11:D17) -> 
A22: MAX DEN | B22: =B27*B23^2+B26*B23+B25 -> 
A23: MAX W | B23: =-B26/(2*B27) -> 
A25: Ao | B25: =INDEX(LINEST($B$11:$B$14,$C$11:$D$14),3) -> 
A26: A1 | B26: =INDEX(LINEST($B$11:$B$14,$C$11:$D$14),2) ->  | D26: SG | E26: =SpecificGravity -> 
A27: A2 | B27: =INDEX(LINEST($B$11:$B$14,$C$11:$D$14),1) -> 
A29: W | B29: dry density | C29: zav
A30: ='Optimum Moisture'!$L$29 -> 0 | B30: =$B$25+$B$26*A30+$B$27*A30^2 ->  | C30: =($E$26*62.4)/(1+(A30/100)*$E$26) -> 
A31: =A30-0.1 -> -0.1
A32: -0.2
A33: -0.3
A34: -0.4
A35: -0.5
A36: -0.6
A37: -0.7
A38: -0.8
A39: -0.9
A40: -1
A41: -1.1
A42: -1.2
A43: -1.3
A44: -1.4
A45: -1.5
A46: -1.6
A47: -1.7
A48: -1.8
A49: -1.9
A50: -2
A51: -2.1
A52: -2.2
A53: -2.3
A54: -2.4
A55: -2.5
A56: -2.6
A57: -2.7
A58: -2.8
A59: -2.9
A60: -3
A61: -3.1
A62: -3.2
A63: -3.3
A64: -3.4
A65: -3.5
A66: -3.6
A67: -3.7
A68: -3.8
A69: -3.9
A70: -4
A71: -4.1
A72: -4.2
A73: -4.3
A74: -4.4
A75: -4.5
A76: -4.6
A77: -4.7
A78: -4.8
A79: -4.9
A80: -5
A81: -5.1
A82: -5.2
A83: -5.3
A84: -5.4
A85: -5.5
A86: -5.6
A87: -5.7
A88: -5.8
A89: -5.9
A90: -6
A91: -6.1
A92: -6.2
A93: -6.3
A94: -6.4 | B94: =$B$25+$B$26*A94+$B$27*A94^2 ->  | C94: =($E$26*62.4)/(1+(A94/100)*$E$26) -> 
A95: =A94-0.1 -> -6.5
A96: -6.6
A97: -6.7
A98: -6.8
A99: -6.9
A100: -7
A101: -7.1
A102: -7.2
A103: -7.3
A104: -7.4
A105: -7.5
A106: -7.6
A107: -7.7
A108: -7.8
A109: -7.9
A110: -8
A111: -8.1
A112: -8.2
A113: -8.3
A114: -8.4
A115: -8.5
A116: -8.6
A117: -8.7
A118: -8.8
A119: -8.9
A120: -9
A121: -9.1
A122: -9.2
A123: -9.3
A124: -9.4
A125: -9.5
A126: -9.6
A127: -9.7
A128: -9.8
A129: -9.9
A130: -10
A131: -10.1
A132: -10.2
A133: -10.3
A134: -10.4
A135: -10.5
A136: -10.6
A137: -10.7
A138: -10.8
A139: -10.9
A140: -11
A141: -11.1
A142: -11.2
A143: -11.3
A144: -11.4
A145: -11.5
A146: -11.6
A147: -11.7
A148: -11.8
A149: -11.9
A150: -12
A151: -12.1
A152: -12.2
A153: -12.3
A154: -12.4
A155: -12.5
A156: -12.6
A157: -12.7
A158: -12.8 | B158: =$B$25+$B$26*A158+$B$27*A158^2 ->  | C158: =($E$26*62.4)/(1+(A158/100)*$E$26) -> 
A159: =A158-0.1 -> -12.9
A160: -13
A161: -13.1
A162: -13.2
A163: -13.3
A164: -13.4
A165: -13.5
A166: -13.6
A167: -13.7
A168: -13.8
A169: -13.9
A170: -14
A171: -14.1
A172: -14.2
A173: -14.3
A174: -14.4
A175: -14.5
A176: -14.6
A177: -14.7
A178: -14.8
A179: -14.9
A180: -15
A181: -15.1
A182: -15.2
A183: -15.3
A184: -15.4
A185: -15.5
A186: -15.6
A187: -15.7
A188: -15.8
A189: -15.9
A190: -16
A191: -16.1
A192: -16.2
A193: -16.3
A194: -16.4
A195: -16.5
A196: -16.6
A197: -16.7
A198: -16.8
A199: -16.9
A200: -17
A201: -17.1

Sheet Reference (4) (hidden)
A1: m1 | B1: =(B12-B11)/(C12-C11) -> 
A2: b1 | B2: =B11-B1*C11 ->  | C2: X-Peak | D2: =(B4-B2)/(B1-B3) -> 
A3: m2 | B3: =IF(B13>0,B1*-1,(B14-B13)/(C14-C13)) ->  | C3: Y-Peak | D3: =B1*D2+B2 -> 
A4: b2 | B4: =B13-C13*B3 -> 
A10: N | B10: Y | C10: X | D10: X^2
A11: 1 | B11: ='Optimum Moisture'!M46 ->  | C11: ='Optimum Moisture'!M45 ->  | D11: =C11^2 -> 
A12: 2 | B12: ='Optimum Moisture'!N46 ->  | C12: ='Optimum Moisture'!N45 -> 
A13: 3 | B13: ='Optimum Moisture'!O46 ->  | C13: ='Optimum Moisture'!O45 -> 
A14: 4 | B14: =D3 ->  | C14: =D2 -> 
A15: 5 | B15: =D3 ->  | C15: =$D$2 -> 
A16: 6 | B16: =D3 ->  | C16: =$D$2 -> 
A17: 7 | B17: =D3 ->  | C17: =$D$2 -> 
A18: 8 | B18: =D3 ->  | C18: =D2 -> 
A19: SUM | B19: =SUM(B13:B17) ->  | C19: =SUM(C13:C17) ->  | D19: =SUM(D11:D17) -> 
A22: MAX DEN | B22: =B27*B23^2+B26*B23+B25 -> 
A23: MAX W | B23: =-B26/(2*B27) -> 
A25: Ao | B25: =INDEX(LINEST($B$11:$B$14,$C$11:$D$14),3) -> 
A26: A1 | B26: =INDEX(LINEST($B$11:$B$14,$C$11:$D$14),2) ->  | D26: SG | E26: =SpecificGravity -> 
A27: A2 | B27: =INDEX(LINEST($B$11:$B$14,$C$11:$D$14),1) -> 
A29: W | B29: dry density | C29: zav
A30: ='Optimum Moisture'!$O$29 -> 0 | B30: =$B$25+$B$26*A30+$B$27*A30^2 ->  | C30: =($E$26*62.4)/(1+(A30/100)*$E$26) -> 
A31: =A30-0.1 -> -0.1
A32: -0.2
A33: -0.3
A34: -0.4
A35: -0.5
A36: -0.6
A37: -0.7
A38: -0.8
A39: -0.9
A40: -1
A41: -1.1
A42: -1.2
A43: -1.3
A44: -1.4
A45: -1.5
A46: -1.6
A47: -1.7
A48: -1.8
A49: -1.9
A50: -2
A51: -2.1
A52: -2.2
A53: -2.3
A54: -2.4
A55: -2.5
A56: -2.6
A57: -2.7
A58: -2.8
A59: -2.9
A60: -3
A61: -3.1
A62: -3.2
A63: -3.3
A64: -3.4
A65: -3.5
A66: -3.6
A67: -3.7
A68: -3.8
A69: -3.9
A70: -4
A71: -4.1
A72: -4.2
A73: -4.3
A74: -4.4
A75: -4.5
A76: -4.6
A77: -4.7
A78: -4.8
A79: -4.9
A80: -5
A81: -5.1
A82: -5.2
A83: -5.3
A84: -5.4
A85: -5.5
A86: -5.6
A87: -5.7
A88: -5.8
A89: -5.9
A90: -6
A91: -6.1
A92: -6.2
A93: -6.3
A94: -6.4 | B94: =$B$25+$B$26*A94+$B$27*A94^2 ->  | C94: =($E$26*62.4)/(1+(A94/100)*$E$26) -> 
A95: =A94-0.1 -> -6.5
A96: -6.6
A97: -6.7
A98: -6.8
A99: -6.9
A100: -7
A101: -7.1
A102: -7.2
A103: -7.3
A104: -7.4
A105: -7.5
A106: -7.6
A107: -7.7
A108: -7.8
A109: -7.9
A110: -8
A111: -8.1
A112: -8.2
A113: -8.3
A114: -8.4
A115: -8.5
A116: -8.6
A117: -8.7
A118: -8.8
A119: -8.9
A120: -9
A121: -9.1
A122: -9.2
A123: -9.3
A124: -9.4
A125: -9.5
A126: -9.6
A127: -9.7
A128: -9.8
A129: -9.9
A130: -10
A131: -10.1
A132: -10.2
A133: -10.3
A134: -10.4
A135: -10.5
A136: -10.6
A137: -10.7
A138: -10.8
A139: -10.9
A140: -11
A141: -11.1
A142: -11.2
A143: -11.3
A144: -11.4
A145: -11.5
A146: -11.6
A147: -11.7
A148: -11.8
A149: -11.9
A150: -12
A151: -12.1
A152: -12.2
A153: -12.3
A154: -12.4
A155: -12.5
A156: -12.6
A157: -12.7
A158: -12.8 | B158: =$B$25+$B$26*A158+$B$27*A158^2 ->  | C158: =($E$26*62.4)/(1+(A158/100)*$E$26) -> 
A159: =A158-0.1 -> -12.9
A160: -13
A161: -13.1
A162: -13.2
A163: -13.3
A164: -13.4
A165: -13.5
A166: -13.6
A167: -13.7
A168: -13.8
A169: -13.9
A170: -14
A171: -14.1
A172: -14.2
A173: -14.3
A174: -14.4
A175: -14.5
A176: -14.6
A177: -14.7
A178: -14.8
A179: -14.9
A180: -15
A181: -15.1
A182: -15.2
A183: -15.3
A184: -15.4
A185: -15.5
A186: -15.6
A187: -15.7
A188: -15.8
A189: -15.9
A190: -16
A191: -16.1
A192: -16.2
A193: -16.3
A194: -16.4
A195: -16.5
A196: -16.6
A197: -16.7
A198: -16.8
A199: -16.9
A200: -17
A201: -17.1

Sheet Reference (5) (hidden)
A1: m1 | B1: =(B12-B11)/(C12-C11) -> 
A2: b1 | B2: =B11-B1*C11 ->  | C2: X-Peak | D2: =(B4-B2)/(B1-B3) -> 
A3: m2 | B3: =IF(B13>0,B1*-1,(B14-B13)/(C14-C13)) ->  | C3: Y-Peak | D3: =B1*D2+B2 -> 
A4: b2 | B4: =B13-C13*B3 -> 
A10: N | B10: Y | C10: X | D10: X^2
A11: 1 | B11: ='Optimum Moisture'!P46 ->  | C11: ='Optimum Moisture'!P45 ->  | D11: =C11^2 -> 
A12: 2 | B12: ='Optimum Moisture'!Q46 ->  | C12: ='Optimum Moisture'!Q45 -> 
A13: 3 | B13: ='Optimum Moisture'!R46 ->  | C13: ='Optimum Moisture'!R45 -> 
A14: 4 | B14: =D3 ->  | C14: =D2 -> 
A15: 5 | B15: =D3 ->  | C15: =$D$2 -> 
A16: 6 | B16: =D3 ->  | C16: =$D$2 -> 
A17: 7 | B17: =D3 ->  | C17: =$D$2 -> 
A18: 8 | B18: =D3 ->  | C18: =D2 -> 
A19: SUM | B19: =SUM(B13:B17) ->  | C19: =SUM(C13:C17) ->  | D19: =SUM(D11:D17) -> 
A22: MAX DEN | B22: =B27*B23^2+B26*B23+B25 -> 
A23: MAX W | B23: =-B26/(2*B27) -> 
A25: Ao | B25: =INDEX(LINEST($B$11:$B$14,$C$11:$D$14),3) -> 
A26: A1 | B26: =INDEX(LINEST($B$11:$B$14,$C$11:$D$14),2) ->  | D26: SG | E26: =SpecificGravity -> 
A27: A2 | B27: =INDEX(LINEST($B$11:$B$14,$C$11:$D$14),1) -> 
A29: W | B29: dry density | C29: zav
A30: ='Optimum Moisture'!$R$29 -> 0 | B30: =$B$25+$B$26*A30+$B$27*A30^2 ->  | C30: =($E$26*62.4)/(1+(A30/100)*$E$26) -> 
A31: =A30-0.1 -> -0.1
A32: -0.2
A33: -0.3
A34: -0.4
A35: -0.5
A36: -0.6
A37: -0.7
A38: -0.8
A39: -0.9
A40: -1
A41: -1.1
A42: -1.2
A43: -1.3
A44: -1.4
A45: -1.5
A46: -1.6
A47: -1.7
A48: -1.8
A49: -1.9
A50: -2
A51: -2.1
A52: -2.2
A53: -2.3
A54: -2.4
A55: -2.5
A56: -2.6
A57: -2.7
A58: -2.8
A59: -2.9
A60: -3
A61: -3.1
A62: -3.2
A63: -3.3
A64: -3.4
A65: -3.5
A66: -3.6
A67: -3.7
A68: -3.8
A69: -3.9
A70: -4
A71: -4.1
A72: -4.2
A73: -4.3
A74: -4.4
A75: -4.5
A76: -4.6
A77: -4.7
A78: -4.8
A79: -4.9
A80: -5
A81: -5.1
A82: -5.2
A83: -5.3
A84: -5.4
A85: -5.5
A86: -5.6
A87: -5.7
A88: -5.8
A89: -5.9
A90: -6
A91: -6.1
A92: -6.2
A93: -6.3
A94: -6.4 | B94: =$B$25+$B$26*A94+$B$27*A94^2 ->  | C94: =($E$26*62.4)/(1+(A94/100)*$E$26) -> 
A95: =A94-0.1 -> -6.5
A96: -6.6
A97: -6.7
A98: -6.8
A99: -6.9
A100: -7
A101: -7.1
A102: -7.2
A103: -7.3
A104: -7.4
A105: -7.5
A106: -7.6
A107: -7.7
A108: -7.8
A109: -7.9
A110: -8
A111: -8.1
A112: -8.2
A113: -8.3
A114: -8.4
A115: -8.5
A116: -8.6
A117: -8.7
A118: -8.8
A119: -8.9
A120: -9
A121: -9.1
A122: -9.2
A123: -9.3
A124: -9.4
A125: -9.5
A126: -9.6
A127: -9.7
A128: -9.8
A129: -9.9
A130: -10
A131: -10.1
A132: -10.2
A133: -10.3
A134: -10.4
A135: -10.5
A136: -10.6
A137: -10.7
A138: -10.8
A139: -10.9
A140: -11
A141: -11.1
A142: -11.2
A143: -11.3
A144: -11.4
A145: -11.5
A146: -11.6
A147: -11.7
A148: -11.8
A149: -11.9
A150: -12
A151: -12.1
A152: -12.2
A153: -12.3
A154: -12.4
A155: -12.5
A156: -12.6
A157: -12.7
A158: -12.8 | B158: =$B$25+$B$26*A158+$B$27*A158^2 ->  | C158: =($E$26*62.4)/(1+(A158/100)*$E$26) -> 
A159: =A158-0.1 -> -12.9
A160: -13
A161: -13.1
A162: -13.2
A163: -13.3
A164: -13.4
A165: -13.5
A166: -13.6
A167: -13.7
A168: -13.8
A169: -13.9
A170: -14
A171: -14.1
A172: -14.2
A173: -14.3
A174: -14.4
A175: -14.5
A176: -14.6
A177: -14.7
A178: -14.8
A179: -14.9
A180: -15
A181: -15.1
A182: -15.2
A183: -15.3
A184: -15.4
A185: -15.5
A186: -15.6
A187: -15.7
A188: -15.8
A189: -15.9
A190: -16
A191: -16.1
A192: -16.2
A193: -16.3
A194: -16.4
A195: -16.5
A196: -16.6
A197: -16.7
A198: -16.8
A199: -16.9
A200: -17
A201: -17.1

Sheet Set 1(a) (hidden)
A1: [HEADER]
A2: Project: | B2: Project1
A3: Date: | B3: 37036 | C3: Time: | D3: 0.4115856481
A4: Boring: | B4: Boring1 | C4: Sample: | D4: 2
A5: Specimen: | B5: 2 | C5: Depth (ft): | D5: 10
A6: Diameter (inch): | C6: Height (inch):
A7: Piston Correction (lbs):
A8: Comments:
A10: [SENSORS]
A11: Name | B11: External Load Cell | C11: Cell Pressure | D11: Load Frame Encoder
A12: ID | B12: LC54032 | C12: PS9170013 | D12: N/A
A13: Module | B13: Load Frame Adc | C13: Load Frame Adc | D13: N/A
A14: Channel | B14: 1 | C14: 3 | D14: N/A
A15: Unit | B15: lbs | C15: psi | D15: inch
A16: Cal. Factor | C16: 10000
A17: Excitation | C17: 10.03 | D17: N/A
A18: Zero | C18: -0.000172 | D18: N/A
A19: Min. Reading | B19: -10000 | C19: -14 | D19: 0
A20: Max. Reading | B20: 10000 | C20: 98 | D20: 3.5
A22: [SHEAR]
A23: Time | B23: External Load Cell | C23: Cell Pressure | D23: Platen Position

Sheet Set 1(b) (hidden)
A1: [HEADER]
A2: Project: | B2: Project1
A3: Date: | B3: 37036 | C3: Time: | D3: 0.4115856481
A4: Boring: | B4: Boring1 | C4: Sample: | D4: 2
A5: Specimen: | B5: 2 | C5: Depth (ft): | D5: 10
A6: Diameter (inch): | C6: Height (inch):
A7: Piston Correction (lbs):
A8: Comments:
A10: [SENSORS]
A11: Name | B11: External Load Cell | C11: Cell Pressure | D11: Load Frame Encoder
A12: ID | B12: LC54032 | C12: PS9170013 | D12: N/A
A13: Module | B13: Load Frame Adc | C13: Load Frame Adc | D13: N/A
A14: Channel | B14: 1 | C14: 3 | D14: N/A
A15: Unit | B15: lbs | C15: psi | D15: inch
A16: Cal. Factor | C16: 10000
A17: Excitation | C17: 10.03 | D17: N/A
A18: Zero | C18: -0.000172 | D18: N/A
A19: Min. Reading | B19: -10000 | C19: -14 | D19: 0
A20: Max. Reading | B20: 10000 | C20: 98 | D20: 3.5
A22: [SHEAR]
A23: Time | B23: External Load Cell | C23: Cell Pressure | D23: Platen Position

Sheet Set 1(c) (hidden)
A1: [HEADER]
A2: Project: | B2: Project1
A3: Date: | B3: 37036 | C3: Time: | D3: 0.4406134259
A4: Boring: | B4: Boring1 | C4: Sample: | D4: 5
A5: Specimen: | B5: 5 | C5: Depth (ft): | D5: 10
A6: Diameter (inch): | C6: Height (inch):
A7: Piston Correction (lbs):
A8: Comments:
A10: [SENSORS]
A11: Name | B11: External Load Cell | C11: Cell Pressure | D11: Load Frame Encoder
A12: ID | B12: LC54032 | C12: PS9170013 | D12: N/A
A13: Module | B13: Load Frame Adc | C13: Load Frame Adc | D13: N/A
A14: Channel | B14: 1 | C14: 3 | D14: N/A
A15: Unit | B15: lbs | C15: psi | D15: inch
A16: Cal. Factor | C16: 10000
A17: Excitation | C17: 10.03 | D17: N/A
A18: Zero | C18: -0.000172 | D18: N/A
A19: Min. Reading | B19: -10000 | C19: -14 | D19: 0
A20: Max. Reading | B20: 10000 | C20: 98 | D20: 3.5
A22: [SHEAR]
A23: Time | B23: External Load Cell | C23: Cell Pressure | D23: Platen Position

Sheet Set 2(a) (hidden)
A1: [HEADER]
A2: Project: | B2: Project1
A3: Date: | B3: 37036 | C3: Time: | D3: 0.4273611111
A4: Boring: | B4: Boring1 | C4: Sample: | D4: 1
A5: Specimen: | B5: 1 | C5: Depth (ft): | D5: 10
A6: Diameter (inch): | C6: Height (inch):
A7: Piston Correction (lbs):
A8: Comments:
A10: [SENSORS]
A11: Name | B11: External Load Cell | C11: Cell Pressure | D11: Load Frame Encoder
A12: ID | B12: LC54032 | C12: PS9170013 | D12: N/A
A13: Module | B13: Load Frame Adc | C13: Load Frame Adc | D13: N/A
A14: Channel | B14: 1 | C14: 3 | D14: N/A
A15: Unit | B15: lbs | C15: psi | D15: inch
A16: Cal. Factor | C16: 10000
A17: Excitation | C17: 10.03 | D17: N/A
A18: Zero | C18: -0.000172 | D18: N/A
A19: Min. Reading | B19: -10000 | C19: -14 | D19: 0
A20: Max. Reading | B20: 10000 | C20: 98 | D20: 3.5
A22: [SHEAR]
A23: Time | B23: External Load Cell | C23: Cell Pressure | D23: Platen Position

Sheet Set 2(b) (hidden)
A1: Created by Sigma-1 UU Version 3.7.5; Copyright 2003, GEOTAC
A2: Project: | B2: Amarillo
A3: Date: | B3: 38279 | C3: Time: | D3: 0.422337963
A4: Boring: | B4: 3% Cement Base | C4: Sample: | D4: 04-E-131
A5: Specimen: | B5: Specimen 2 | C5: Depth (ft): | D5: 0
A6: Diameter (inch): | C6: Height (inch):
A7: Piston Correction (lbs):
A8: Comments:
A10: [SENSORS]
A11: Name | B11: External Load Cell | C11: Cell Pressure | D11: Load Frame Encoder
A12: ID | B12: 118521 | C12: ID2 | D12: N/A
A13: Module | B13: Load Frame ADIO | C13: Load Frame ADIO | D13: N/A
A14: Channel | B14: 1 | C14: 4 | D14: N/A
A15: Unit | B15: lbs | C15: psi | D15: inch
A16: Cal. Factor | C16: 20000
A17: Excitation | C17: 9.975906372 | D17: N/A
A18: Zero | C18: 0 | D18: N/A
A19: Min. Reading | B19: -10000 | C19: -14 | D19: 0
A20: Max. Reading | B20: 50000 | C20: 190 | D20: 3.5
A22: [SHEAR]
A23: Time | B23: External Load Cell | C23: Cell Pressure | D23: Platen Position

Sheet Set 2(c) (hidden)
A1: Created by Sigma-1 UU Version 3.7.5; Copyright 2003, GEOTAC
A2: Project: | B2: Amarillo
A3: Date: | B3: 38279 | C3: Time: | D3: 0.4334837963
A4: Boring: | B4: 3% Cement Base | C4: Sample: | D4: 04-E-131
A5: Specimen: | B5: Specimen 4 | C5: Depth (ft): | D5: 0
A6: Diameter (inch): | C6: Height (inch):
A7: Piston Correction (lbs):
A8: Comments:
A10: [SENSORS]
A11: Name | B11: External Load Cell | C11: Cell Pressure | D11: Load Frame Encoder
A12: ID | B12: 118521 | C12: ID2 | D12: N/A
A13: Module | B13: Load Frame ADIO | C13: Load Frame ADIO | D13: N/A
A14: Channel | B14: 1 | C14: 4 | D14: N/A
A15: Unit | B15: lbs | C15: psi | D15: inch
A16: Cal. Factor | C16: 20000
A17: Excitation | C17: 9.975906372 | D17: N/A
A18: Zero | C18: 0 | D18: N/A
A19: Min. Reading | B19: -10000 | C19: -14 | D19: 0
A20: Max. Reading | B20: 50000 | C20: 190 | D20: 3.5
A22: [SHEAR]
A23: Time | B23: External Load Cell | C23: Cell Pressure | D23: Platen Position

Sheet Set 3(a) (hidden)
A1: [HEADER]
A2: Project: | B2: Project1
A3: Date: | B3: 37036 | C3: Time: | D3: 0.4203125
A4: Boring: | B4: Boring1 | C4: Sample: | D4: 3
A5: Specimen: | B5: 3 | C5: Depth (ft): | D5: 10
A6: Diameter (inch): | C6: Height (inch):
A7: Piston Correction (lbs):
A8: Comments:
A10: [SENSORS]
A11: Name | B11: External Load Cell | C11: Cell Pressure | D11: Load Frame Encoder
A12: ID | B12: LC54032 | C12: PS9170013 | D12: N/A
A13: Module | B13: Load Frame Adc | C13: Load Frame Adc | D13: N/A
A14: Channel | B14: 1 | C14: 3 | D14: N/A
A15: Unit | B15: lbs | C15: psi | D15: inch
A16: Cal. Factor | C16: 10000
A17: Excitation | C17: 10.03 | D17: N/A
A18: Zero | C18: -0.000172 | D18: N/A
A19: Min. Reading | B19: -10000 | C19: -14 | D19: 0
A20: Max. Reading | B20: 10000 | C20: 98 | D20: 3.5
A22: [SHEAR]
A23: Time | B23: External Load Cell | C23: Cell Pressure | D23: Platen Position

Sheet Set 3(b) (hidden)
A1: Created by Sigma-1 UU Version 3.7.5; Copyright 2003, GEOTAC
A2: Project: | B2: Amarillo
A3: Date: | B3: 38279 | C3: Time: | D3: 0.404212963
A4: Boring: | B4: 4% Cement Base | C4: Sample: | D4: 04-E-131
A5: Specimen: | B5: Specimen 3 | C5: Depth (ft): | D5: 0
A6: Diameter (inch): | C6: Height (inch):
A7: Piston Correction (lbs):
A8: Comments:
A10: [SENSORS]
A11: Name | B11: External Load Cell | C11: Cell Pressure | D11: Load Frame Encoder
A12: ID | B12: 118521 | C12: ID2 | D12: N/A
A13: Module | B13: Load Frame ADIO | C13: Load Frame ADIO | D13: N/A
A14: Channel | B14: 1 | C14: 4 | D14: N/A
A15: Unit | B15: lbs | C15: psi | D15: inch
A16: Cal. Factor | C16: 20000
A17: Excitation | C17: 9.975906372 | D17: N/A
A18: Zero | C18: 0 | D18: N/A
A19: Min. Reading | B19: -10000 | C19: -14 | D19: 0
A20: Max. Reading | B20: 50000 | C20: 190 | D20: 3.5
A22: [SHEAR]
A23: Time | B23: External Load Cell | C23: Cell Pressure | D23: Platen Position

Sheet Set 3(c) (hidden)
A1: Created by Sigma-1 UU Version 3.7.5; Copyright 2003, GEOTAC
A2: Project:
A3: Date: | C3: Time:
A4: Boring: | C4: Sample:
A5: Specimen: | C5: Depth (ft):
A6: Diameter (inch): | C6: Height (inch):
A7: Piston Correction (lbs):
A8: Comments:
A10: [SENSORS]
A11: Name | B11: External Load Cell | C11: Cell Pressure | D11: Load Frame Encoder
A12: ID
A13: Module
A14: Channel
A15: Unit
A16: Cal. Factor
A17: Excitation
A18: Zero
A19: Min. Reading
A20: Max. Reading
A22: [SHEAR]
A23: Time | B23: External Load Cell | C23: Cell Pressure | D23: Platen Position

Sheet Set 4(a) (hidden)
A1: Created by Sigma-1 UU Version 3.7.5; Copyright 2003, GEOTAC
A2: Project: | B2: Amarillo
A3: Date: | B3: 38279 | C3: Time: | D3: 0.3517939815
A4: Boring: | B4: 5 % Cement Base | C4: Sample: | D4: 04-E-131
A5: Specimen: | B5: Specimen 2 | C5: Depth (ft): | D5: 0
A6: Diameter (inch): | C6: Height (inch):
A7: Piston Correction (lbs):
A8: Comments:
A10: [SENSORS]
A11: Name | B11: External Load Cell | C11: Cell Pressure | D11: Load Frame Encoder
A12: ID | B12: 118521 | C12: ID2 | D12: N/A
A13: Module | B13: Load Frame ADIO | C13: Load Frame ADIO | D13: N/A
A14: Channel | B14: 1 | C14: 4 | D14: N/A
A15: Unit | B15: lbs | C15: psi | D15: inch
A16: Cal. Factor | C16: 20000
A17: Excitation | C17: 9.975906372 | D17: N/A
A18: Zero | C18: 0 | D18: N/A
A19: Min. Reading | B19: -10000 | C19: -14 | D19: 0
A20: Max. Reading | B20: 50000 | C20: 190 | D20: 3.5
A22: [SHEAR]
A23: Time | B23: External Load Cell | C23: Cell Pressure | D23: Platen Position

Sheet Set 4(b) (hidden)
A1: [HEADER]
A2: Project: | B2: Project1
A3: Date: | B3: 37036 | C3: Time: | D3: 0.4001388889
A4: Boring: | B4: Boring1 | C4: Sample: | D4: 6
A5: Specimen: | B5: 6 | C5: Depth (ft): | D5: 10
A6: Diameter (inch): | C6: Height (inch):
A7: Piston Correction (lbs):
A8: Comments:
A10: [SENSORS]
A11: Name | B11: External Load Cell | C11: Cell Pressure | D11: Load Frame Encoder
A12: ID | B12: LC54032 | C12: PS9170013 | D12: N/A
A13: Module | B13: Load Frame Adc | C13: Load Frame Adc | D13: N/A
A14: Channel | B14: 1 | C14: 3 | D14: N/A
A15: Unit | B15: lbs | C15: psi | D15: inch
A16: Cal. Factor | C16: 10000
A17: Excitation | C17: 10.03 | D17: N/A
A18: Zero | C18: -0.000172 | D18: N/A
A19: Min. Reading | B19: -10000 | C19: -14 | D19: 0
A20: Max. Reading | B20: 10000 | C20: 98 | D20: 3.5
A22: [SHEAR]
A23: Time | B23: External Load Cell | C23: Cell Pressure | D23: Platen Position

Sheet Set 4(c) (hidden)
A1: [HEADER]
A2: Project: | B2: Project1
A3: Date: | B3: 37036 | C3: Time: | D3: 0.4027662037
A4: Boring: | B4: Boring1 | C4: Sample: | D4: 6
A5: Specimen: | B5: 6 | C5: Depth (ft): | D5: 10
A6: Diameter (inch): | C6: Height (inch):
A7: Piston Correction (lbs):
A8: Comments:
A10: [SENSORS]
A11: Name | B11: External Load Cell | C11: Cell Pressure | D11: Load Frame Encoder
A12: ID | B12: LC54032 | C12: PS9170013 | D12: N/A
A13: Module | B13: Load Frame Adc | C13: Load Frame Adc | D13: N/A
A14: Channel | B14: 1 | C14: 3 | D14: N/A
A15: Unit | B15: lbs | C15: psi | D15: inch
A16: Cal. Factor | C16: 10000
A17: Excitation | C17: 10.03 | D17: N/A
A18: Zero | C18: -0.000172 | D18: N/A
A19: Min. Reading | B19: -10000 | C19: -14 | D19: 0
A20: Max. Reading | B20: 10000 | C20: 98 | D20: 3.5
A22: [SHEAR]
A23: Time | B23: External Load Cell | C23: Cell Pressure | D23: Platen Position
